{"text_format":"3","workbook":"xlsx","n_sheets":4,"sheets":["Suivi des notes","Vos performances","Paramètres","Calculs"],"not_rendered":{"defined_names":3,"comments":1},"read":"whole","date_system":"1900"}

{"sheet":"Suivi des notes","index":0,"n_rows":14,"n_cols":6,"rows_kept":14}
[null,"Entrez vos notes ici"]
[]
[null,null,"Cours","Type","Description","Note"]
[null,null,"Anglais","Devoirs","Histoire de la Seconde Guerre mondiale",{"v":0.8,"d":"80%"}]
[null,null,"Programmation avancée en Java","Examen partiel",null,{"v":0.75,"d":"75%"}]
[null,null,"Espagnol","Devoirs",null,{"v":0.5,"d":"50%"}]
[null,null,"Physique théorique","Devoirs",null,{"v":0.95,"d":"95%"}]
[null,null,"Anglais","Devoirs","Histoire de la Première Guerre mondiale",{"v":0.9,"d":"90%"}]
[null,null,"Anglais","Devoirs","Pages 30 à 41",{"v":0.8,"d":"80%"}]
[null,null,"Composition","Dissertation","Épreuve d’argumentation",{"v":0.95,"d":"95%"}]
[null,null,"Mathématiques 1","Devoirs","Pages 21 et 26",{"v":0.8,"d":"80%"}]
[null,null,"Mathématiques 2","Devoirs","Pages 15 et 18",{"v":0.85,"d":"85%"}]
[null,null,"Mathématiques 1","Devoirs","Pages 34 à 36",{"v":0.8,"d":"80%"}]
[null,null,"Mathématiques 2","Questionnaire",null,{"v":0.95,"d":"95%"}]

{"sheet":"Vos performances","index":1,"n_rows":31,"n_cols":8,"rows_kept":31}
[null,"Vos performances"]
[]
[null,null,"Totaux"]
[null,null,{"$f":"\"Heures : \"&SUM(tblCours[Crédit (heures)])","v":"Heures : 24"},{"$f":"AVERAGE(D7:D31)","v":{"v":0.8104761904761906,"d":"81%"}},{"$f":"AVERAGE(E7:E31)","v":{"v":2.7142857142857144,"d":"2.71"}},{"$f":"SUM(F7:F31)","v":{"v":2.625,"d":"2.63"}},{"$f":"IFERROR(HLOOKUP(D4,_1erTableauCorrespondanceMoyenne,2),\"\")","v":"B-"}]
[]
[null,null,"Cours","%","MOYENNE","Moyenne pondérée","Lettre","Performance globale"]
[null,null,{"$f":"Calculs!C6","v":"Anglais"},{"$f":"Calculs!AL6","v":{"v":0.8333333333333334,"d":"83%"}},{"$f":"Calculs!AM6","v":{"v":3,"d":"3.00"}},{"$f":"IFERROR(E7*Paramètres!D9/SUM(tblCours[Crédit (heures)]),\"\")","v":{"v":0.375,"d":"0.38"}},{"$f":"Calculs!AN6","v":"B"}]
[null,null,{"$f":"Calculs!C7","v":"Physique théorique"},{"$f":"Calculs!AL7","v":{"v":0.95,"d":"95%"}},{"$f":"Calculs!AM7","v":{"v":4,"d":"4.00"}},{"$f":"IFERROR(E8*Paramètres!D10/SUM(tblCours[Crédit (heures)]),\"\")","v":{"v":0.5,"d":"0.50"}},{"$f":"Calculs!AN7","v":"A"}]
[null,null,{"$f":"Calculs!C8","v":"Mathématiques 1"},{"$f":"Calculs!AL8","v":{"v":0.8000000000000002,"d":"80%"}},{"$f":"Calculs!AM8","v":2.67},{"$f":"IFERROR(E9*Paramètres!D11/SUM(tblCours[Crédit (heures)]),\"\")","v":{"v":0.445,"d":"0.45"}},{"$f":"Calculs!AN8","v":"B-"}]
[null,null,{"$f":"Calculs!C9","v":"Mathématiques 2"},{"$f":"Calculs!AL9","v":{"v":0.89,"d":"89%"}},{"$f":"Calculs!AM9","v":3.33},{"$f":"IFERROR(E10*Paramètres!D12/SUM(tblCours[Crédit (heures)]),\"\")","v":{"v":0.555,"d":"0.56"}},{"$f":"Calculs!AN9","v":"B+"}]
[null,null,{"$f":"Calculs!C10","v":"Programmation avancée en Java"},{"$f":"Calculs!AL10","v":{"v":0.7500000000000001,"d":"75%"}},{"$f":"Calculs!AM10","v":{"v":2,"d":"2.00"}},{"$f":"IFERROR(E11*Paramètres!D13/SUM(tblCours[Crédit (heures)]),\"\")","v":{"v":0.4166666666666667,"d":"0.42"}},{"$f":"Calculs!AN10","v":"C"}]
[null,null,{"$f":"Calculs!C11","v":"Espagnol"},{"$f":"Calculs!AL11","v":{"v":0.5,"d":"50%"}},{"$f":"Calculs!AM11","v":{"v":0,"d":"0.00"}},{"$f":"IFERROR(E12*Paramètres!D14/SUM(tblCours[Crédit (heures)]),\"\")","v":{"v":0,"d":"0.00"}},{"$f":"Calculs!AN11","v":"F"}]
[null,null,{"$f":"Calculs!C12","v":"Composition"},{"$f":"Calculs!AL12","v":{"v":0.95,"d":"95%"}},{"$f":"Calculs!AM12","v":{"v":4,"d":"4.00"}},{"$f":"IFERROR(E13*Paramètres!D15/SUM(tblCours[Crédit (heures)]),\"\")","v":{"v":0.3333333333333333,"d":"0.33"}},{"$f":"Calculs!AN12","v":"A"}]
[null,null,{"$f":"Calculs!C13","v":""},{"$f":"Calculs!AL13","v":""},{"$f":"Calculs!AM13","v":""},{"$f":"IFERROR(E14*Paramètres!D16/SUM(tblCours[Crédit (heures)]),\"\")","v":""},{"$f":"Calculs!AN13","v":""}]
[null,null,{"$f":"Calculs!C14","v":""},{"$f":"Calculs!AL14","v":""},{"$f":"Calculs!AM14","v":""},{"$f":"IFERROR(E15*Paramètres!D17/SUM(tblCours[Crédit (heures)]),\"\")","v":""},{"$f":"Calculs!AN14","v":""}]
[null,null,{"$f":"Calculs!C15","v":""},{"$f":"Calculs!AL15","v":""},{"$f":"Calculs!AM15","v":""},{"$f":"IFERROR(E16*Paramètres!D18/SUM(tblCours[Crédit (heures)]),\"\")","v":""},{"$f":"Calculs!AN15","v":""}]
[null,null,{"$f":"Calculs!C16","v":""},{"$f":"Calculs!AL16","v":""},{"$f":"Calculs!AM16","v":""},{"$f":"IFERROR(E17*Paramètres!D19/SUM(tblCours[Crédit (heures)]),\"\")","v":""},{"$f":"Calculs!AN16","v":""}]
[null,null,{"$f":"Calculs!C17","v":""},{"$f":"Calculs!AL17","v":""},{"$f":"Calculs!AM17","v":""},{"$f":"IFERROR(E18*Paramètres!D20/SUM(tblCours[Crédit (heures)]),\"\")","v":""},{"$f":"Calculs!AN17","v":""}]
[null,null,{"$f":"Calculs!C18","v":""},{"$f":"Calculs!AL18","v":""},{"$f":"Calculs!AM18","v":""},{"$f":"IFERROR(E19*Paramètres!D21/SUM(tblCours[Crédit (heures)]),\"\")","v":""},{"$f":"Calculs!AN18","v":""}]
[null,null,{"$f":"Calculs!C19","v":""},{"$f":"Calculs!AL19","v":""},{"$f":"Calculs!AM19","v":""},{"$f":"IFERROR(E20*Paramètres!D22/SUM(tblCours[Crédit (heures)]),\"\")","v":""},{"$f":"Calculs!AN19","v":""}]
[null,null,{"$f":"Calculs!C20","v":""},{"$f":"Calculs!AL20","v":""},{"$f":"Calculs!AM20","v":""},{"$f":"IFERROR(E21*Paramètres!D23/SUM(tblCours[Crédit (heures)]),\"\")","v":""},{"$f":"Calculs!AN20","v":""}]
[null,null,{"$f":"Calculs!C21","v":""},{"$f":"Calculs!AL21","v":""},{"$f":"Calculs!AM21","v":""},{"$f":"IFERROR(E22*Paramètres!D24/SUM(tblCours[Crédit (heures)]),\"\")","v":""},{"$f":"Calculs!AN21","v":""}]
[null,null,{"$f":"Calculs!C22","v":""},{"$f":"Calculs!AL22","v":""},{"$f":"Calculs!AM22","v":""},{"$f":"IFERROR(E23*Paramètres!D25/SUM(tblCours[Crédit (heures)]),\"\")","v":""},{"$f":"Calculs!AN22","v":""}]
[null,null,{"$f":"Calculs!C23","v":""},{"$f":"Calculs!AL23","v":""},{"$f":"Calculs!AM23","v":""},{"$f":"IFERROR(E24*Paramètres!D26/SUM(tblCours[Crédit (heures)]),\"\")","v":""},{"$f":"Calculs!AN23","v":""}]
[null,null,{"$f":"Calculs!C24","v":""},{"$f":"Calculs!AL24","v":""},{"$f":"Calculs!AM24","v":""},{"$f":"IFERROR(E25*Paramètres!D27/SUM(tblCours[Crédit (heures)]),\"\")","v":""},{"$f":"Calculs!AN24","v":""}]
[null,null,{"$f":"Calculs!C25","v":""},{"$f":"Calculs!AL25","v":""},{"$f":"Calculs!AM25","v":""},{"$f":"IFERROR(E26*Paramètres!D28/SUM(tblCours[Crédit (heures)]),\"\")","v":""},{"$f":"Calculs!AN25","v":""}]
[null,null,{"$f":"Calculs!C26","v":""},{"$f":"Calculs!AL26","v":""},{"$f":"Calculs!AM26","v":""},{"$f":"IFERROR(E27*Paramètres!D29/SUM(tblCours[Crédit (heures)]),\"\")","v":""},{"$f":"Calculs!AN26","v":""}]
[null,null,{"$f":"Calculs!C27","v":""},{"$f":"Calculs!AL27","v":""},{"$f":"Calculs!AM27","v":""},{"$f":"IFERROR(E28*Paramètres!D30/SUM(tblCours[Crédit (heures)]),\"\")","v":""},{"$f":"Calculs!AN27","v":""}]
[null,null,{"$f":"Calculs!C28","v":""},{"$f":"Calculs!AL28","v":""},{"$f":"Calculs!AM28","v":""},{"$f":"IFERROR(E29*Paramètres!D31/SUM(tblCours[Crédit (heures)]),\"\")","v":""},{"$f":"Calculs!AN28","v":""}]
[null,null,{"$f":"Calculs!C29","v":""},{"$f":"Calculs!AL29","v":""},{"$f":"Calculs!AM29","v":""},{"$f":"IFERROR(E30*Paramètres!D32/SUM(tblCours[Crédit (heures)]),\"\")","v":""},{"$f":"Calculs!AN29","v":""}]
[null,null,{"$f":"Calculs!C30","v":""},{"$f":"Calculs!AL30","v":""},{"$f":"Calculs!AM30","v":""},{"$f":"IFERROR(E31*Paramètres!D33/SUM(tblCours[Crédit (heures)]),\"\")","v":""},{"$f":"Calculs!AN30","v":""}]

{"sheet":"Paramètres","index":2,"n_rows":15,"n_cols":16,"rows_kept":15,"merged":[[5,2,5,15]]}
[null,"Paramètres"]
[null,null,"Tableau de correspondance entre les notes et la moyenne"]
[null,null,"Pourcentage",{"v":0,"d":"0%"},{"v":0.6,"d":"60%"},{"v":0.63,"d":"63%"},{"v":0.67,"d":"67%"},{"v":0.7,"d":"70%"},{"v":0.73,"d":"73%"},{"v":0.77,"d":"77%"},{"v":0.8,"d":"80%"},{"v":0.83,"d":"83%"},{"v":0.87,"d":"87%"},{"v":0.9,"d":"90%"},{"v":0.93,"d":"93%"},{"v":0.97,"d":"97%"}]
[null,null,"Note (lettre)","F","D-","D","D+","C-","C","C+","B-","B","B+","A-","A","A+"]
[null,null,"MOYENNE",0,0.67,1,1.33,1.67,2,2.33,2.67,3,3.33,3.67,4,4]
[]
[null,null,"Notes pondérées pour un maximum de 25 cours"]
[null,null,"Vos cours","Crédit (heures)","Devoirs","Dissertation","Questionnaire","Projet","Examen partiel","Examen final","Autre","% total"]
[null,null,"Anglais",{"v":3,"d":"3.0"},{"v":0.1,"d":"10%"},{"v":0.15,"d":"15%"},{"v":0.15,"d":"15%"},{"v":0.1,"d":"10%"},{"v":0.2,"d":"20%"},{"v":0.3,"d":"30%"},null,{"$f":"SUM(tblCours[[#This Row],[Devoirs]:[Autre]])","v":{"v":1,"d":"100%"}}]
[null,null,"Physique théorique",{"v":3,"d":"3.0"},{"v":0.15,"d":"15%"},{"v":0.15,"d":"15%"},{"v":0.1,"d":"10%"},{"v":0.1,"d":"10%"},{"v":0.15,"d":"15%"},{"v":0.3,"d":"30%"},{"v":0.05,"d":"5%"},{"$f":"SUM(tblCours[[#This Row],[Devoirs]:[Autre]])","v":{"v":1,"d":"100%"}}]
[null,null,"Mathématiques 1",{"v":4,"d":"4.0"},{"v":0.1,"d":"10%"},{"v":0.15,"d":"15%"},{"v":0.15,"d":"15%"},{"v":0.1,"d":"10%"},{"v":0.2,"d":"20%"},{"v":0.3,"d":"30%"},null,{"$f":"SUM(tblCours[[#This Row],[Devoirs]:[Autre]])","v":{"v":1,"d":"100%"}}]
[null,null,"Mathématiques 2",{"v":4,"d":"4.0"},{"v":0.15,"d":"15%"},{"v":0.15,"d":"15%"},{"v":0.1,"d":"10%"},{"v":0.1,"d":"10%"},{"v":0.15,"d":"15%"},{"v":0.3,"d":"30%"},{"v":0.05,"d":"5%"},{"$f":"SUM(tblCours[[#This Row],[Devoirs]:[Autre]])","v":{"v":1,"d":"100%"}}]
[null,null,"Programmation avancée en Java",{"v":5,"d":"5.0"},{"v":0.15,"d":"15%"},{"v":0.15,"d":"15%"},{"v":0.1,"d":"10%"},{"v":0.1,"d":"10%"},{"v":0.2,"d":"20%"},{"v":0.3,"d":"30%"},null,{"$f":"SUM(tblCours[[#This Row],[Devoirs]:[Autre]])","v":{"v":1,"d":"100%"}}]
[null,null,"Espagnol",{"v":3,"d":"3.0"},{"v":0.1,"d":"10%"},{"v":0.15,"d":"15%"},{"v":0.17,"d":"17%"},{"v":0.13,"d":"13%"},{"v":0.2,"d":"20%"},{"v":0.2,"d":"20%"},{"v":0.05,"d":"5%"},{"$f":"SUM(tblCours[[#This Row],[Devoirs]:[Autre]])","v":{"v":1,"d":"100%"}}]
[null,null,"Composition",{"v":2,"d":"2.0"},{"v":0.15,"d":"15%"},{"v":0.15,"d":"15%"},{"v":0.12,"d":"12%"},{"v":0.15,"d":"15%"},{"v":0.15,"d":"15%"},{"v":0.25,"d":"25%"},{"v":0.03,"d":"3%"},{"$f":"SUM(tblCours[[#This Row],[Devoirs]:[Autre]])","v":{"v":1,"d":"100%"}}]

{"sheet":"Calculs","index":3,"n_rows":657,"n_cols":40,"rows_kept":657,"hidden":true}
[null,"Calculs"]
[null,null,"Cette feuille de calcul fournit des calculs pour vos notes et moyennes et doit rester cachée. Toutes les modifications apportées à cette feuille peuvent entraîner des erreurs."]
[]
[null,null,"Liste des cours actuelle","Notes (sur 1)",{"$nulls":24},"Calcul de la moyenne"]
[null,null,"Cours",1,2,3,4,5,6,7,8,9,10,11,12,13,14,15,16,17,18,19,20,21,22,23,24,25,{"$f":"tblCours[[#Headers],[Devoirs]]","v":"Devoirs"},{"$f":"tblCours[[#Headers],[Dissertation]]","v":"Dissertation"},{"$f":"tblCours[[#Headers],[Questionnaire]]","v":"Questionnaire"},{"$f":"tblCours[[#Headers],[Projet]]","v":"Projet"},{"$f":"tblCours[[#Headers],[Examen partiel]]","v":"Examen partiel"},{"$f":"tblCours[[#Headers],[Examen final]]","v":"Examen final"},{"$f":"tblCours[[#Headers],[Autre]]","v":"Autre"},"Total","Nombre total de points possibles","Total en %","Note","Note (lettre)"]
[null,null,{"$f":"IF(Paramètres!C9=\"\",\"\",Paramètres!C9)","v":"Anglais"},{"$f":"IFERROR(INDEX(tblNotesCours[],MATCH($C6:$C30&D$5:AB$5,Calculs!$C$33:$C$657,0),4),\"\")","v":{"v":0.8,"d":"80%"}},{"v":0.9,"d":"90%"},{"v":0.8,"d":"80%"},"","","","","","","","","","","","","","","","","","","","","","",{"$f":"IFERROR(AVERAGEIFS(tblNotesCours[Note],tblNotesCours[Cours],Calculs!$C6,tblNotesCours[Type],Calculs!AC$5)*Paramètres!E9,\"\")","v":0.08333333333333334},{"$f":"IFERROR(AVERAGEIFS(tblNotesCours[Note],tblNotesCours[Cours],Calculs!$C6,tblNotesCours[Type],Calculs!AD$5)*Paramètres!F9,\"\")","v":""},{"$f":"IFERROR(AVERAGEIFS(tblNotesCours[Note],tblNotesCours[Cours],Calculs!$C6,tblNotesCours[Type],Calculs!AE$5)*Paramètres!G9,\"\")","v":""},{"$f":"IFERROR(AVERAGEIFS(tblNotesCours[Note],tblNotesCours[Cours],Calculs!$C6,tblNotesCours[Type],Calculs!AF$5)*Paramètres!H9,\"\")","v":""},{"$f":"IFERROR(AVERAGEIFS(tblNotesCours[Note],tblNotesCours[Cours],Calculs!$C6,tblNotesCours[Type],Calculs!AG$5)*Paramètres!I9,\"\")","v":""},{"$f":"IFERROR(AVERAGEIFS(tblNotesCours[Note],tblNotesCours[Cours],Calculs!$C6,tblNotesCours[Type],Calculs!AH$5)*Paramètres!J9,\"\")","v":""},{"$f":"IFERROR(AVERAGEIFS(tblNotesCours[Note],tblNotesCours[Cours],Calculs!$C6,tblNotesCours[Type],Calculs!AI$5)*Paramètres!K9,\"\")","v":""},{"$f":"SUM(AC6:AI6)","v":0.08333333333333334},{"$f":"SUMIFS(Paramètres!E9:K9,Calculs!AC6:AI6,\">0\")","v":0.1},{"$f":"IFERROR(AJ6/AK6,\"\")","v":{"v":0.8333333333333334,"d":"83%"}},{"$f":"IFERROR(HLOOKUP(AL6,_1erTableauCorrespondanceMoyenne,3),\"\")","v":3},{"$f":"IFERROR(HLOOKUP(AL6,_1erTableauCorrespondanceMoyenne,2),\"\")","v":"B"}]
[null,null,{"$f":"IF(Paramètres!C10=\"\",\"\",Paramètres!C10)","v":"Physique théorique"},{"v":0.95,"d":"95%"},"","","","","","","","","","","","","","","","","","","","","","","","",{"$f":"IFERROR(AVERAGEIFS(tblNotesCours[Note],tblNotesCours[Cours],Calculs!$C7,tblNotesCours[Type],Calculs!AC$5)*Paramètres!E10,\"\")","v":0.1425},{"$f":"IFERROR(AVERAGEIFS(tblNotesCours[Note],tblNotesCours[Cours],Calculs!$C7,tblNotesCours[Type],Calculs!AD$5)*Paramètres!F10,\"\")","v":""},{"$f":"IFERROR(AVERAGEIFS(tblNotesCours[Note],tblNotesCours[Cours],Calculs!$C7,tblNotesCours[Type],Calculs!AE$5)*Paramètres!G10,\"\")","v":""},{"$f":"IFERROR(AVERAGEIFS(tblNotesCours[Note],tblNotesCours[Cours],Calculs!$C7,tblNotesCours[Type],Calculs!AF$5)*Paramètres!H10,\"\")","v":""},{"$f":"IFERROR(AVERAGEIFS(tblNotesCours[Note],tblNotesCours[Cours],Calculs!$C7,tblNotesCours[Type],Calculs!AG$5)*Paramètres!I10,\"\")","v":""},{"$f":"IFERROR(AVERAGEIFS(tblNotesCours[Note],tblNotesCours[Cours],Calculs!$C7,tblNotesCours[Type],Calculs!AH$5)*Paramètres!J10,\"\")","v":""},{"$f":"IFERROR(AVERAGEIFS(tblNotesCours[Note],tblNotesCours[Cours],Calculs!$C7,tblNotesCours[Type],Calculs!AI$5)*Paramètres!K10,\"\")","v":""},{"$f":"SUM(AC7:AI7)","v":0.1425},{"$f":"SUMIFS(Paramètres!E10:K10,Calculs!AC7:AI7,\">0\")","v":0.15},{"$f":"IFERROR(AJ7/AK7,\"\")","v":{"v":0.95,"d":"95%"}},4,"A"]
[null,null,{"$f":"IF(Paramètres!C11=\"\",\"\",Paramètres!C11)","v":"Mathématiques 1"},{"v":0.8,"d":"80%"},{"v":0.8,"d":"80%"},"","","","","","","","","","","","","","","","","","","","","","","",{"$f":"IFERROR(AVERAGEIFS(tblNotesCours[Note],tblNotesCours[Cours],Calculs!$C8,tblNotesCours[Type],Calculs!AC$5)*Paramètres!E11,\"\")","v":0.08000000000000002},{"$f":"IFERROR(AVERAGEIFS(tblNotesCours[Note],tblNotesCours[Cours],Calculs!$C8,tblNotesCours[Type],Calculs!AD$5)*Paramètres!F11,\"\")","v":""},{"$f":"IFERROR(AVERAGEIFS(tblNotesCours[Note],tblNotesCours[Cours],Calculs!$C8,tblNotesCours[Type],Calculs!AE$5)*Paramètres!G11,\"\")","v":""},{"$f":"IFERROR(AVERAGEIFS(tblNotesCours[Note],tblNotesCours[Cours],Calculs!$C8,tblNotesCours[Type],Calculs!AF$5)*Paramètres!H11,\"\")","v":""},{"$f":"IFERROR(AVERAGEIFS(tblNotesCours[Note],tblNotesCours[Cours],Calculs!$C8,tblNotesCours[Type],Calculs!AG$5)*Paramètres!I11,\"\")","v":""},{"$f":"IFERROR(AVERAGEIFS(tblNotesCours[Note],tblNotesCours[Cours],Calculs!$C8,tblNotesCours[Type],Calculs!AH$5)*Paramètres!J11,\"\")","v":""},{"$f":"IFERROR(AVERAGEIFS(tblNotesCours[Note],tblNotesCours[Cours],Calculs!$C8,tblNotesCours[Type],Calculs!AI$5)*Paramètres!K11,\"\")","v":""},0.08000000000000002,{"$f":"SUMIFS(Paramètres!E11:K11,Calculs!AC8:AI8,\">0\")","v":0.1},{"v":0.8000000000000002,"d":"80%"},2.67,"B-"]
[null,null,{"$f":"IF(Paramètres!C12=\"\",\"\",Paramètres!C12)","v":"Mathématiques 2"},{"v":0.85,"d":"85%"},{"v":0.95,"d":"95%"},"","","","","","","","","","","","","","","","","","","","","","","",{"$f":"IFERROR(AVERAGEIFS(tblNotesCours[Note],tblNotesCours[Cours],Calculs!$C9,tblNotesCours[Type],Calculs!AC$5)*Paramètres!E12,\"\")","v":0.1275},{"$f":"IFERROR(AVERAGEIFS(tblNotesCours[Note],tblNotesCours[Cours],Calculs!$C9,tblNotesCours[Type],Calculs!AD$5)*Paramètres!F12,\"\")","v":""},{"$f":"IFERROR(AVERAGEIFS(tblNotesCours[Note],tblNotesCours[Cours],Calculs!$C9,tblNotesCours[Type],Calculs!AE$5)*Paramètres!G12,\"\")","v":0.095},{"$f":"IFERROR(AVERAGEIFS(tblNotesCours[Note],tblNotesCours[Cours],Calculs!$C9,tblNotesCours[Type],Calculs!AF$5)*Paramètres!H12,\"\")","v":""},{"$f":"IFERROR(AVERAGEIFS(tblNotesCours[Note],tblNotesCours[Cours],Calculs!$C9,tblNotesCours[Type],Calculs!AG$5)*Paramètres!I12,\"\")","v":""},{"$f":"IFERROR(AVERAGEIFS(tblNotesCours[Note],tblNotesCours[Cours],Calculs!$C9,tblNotesCours[Type],Calculs!AH$5)*Paramètres!J12,\"\")","v":""},{"$f":"IFERROR(AVERAGEIFS(tblNotesCours[Note],tblNotesCours[Cours],Calculs!$C9,tblNotesCours[Type],Calculs!AI$5)*Paramètres!K12,\"\")","v":""},0.2225,{"$f":"SUMIFS(Paramètres!E12:K12,Calculs!AC9:AI9,\">0\")","v":0.25},{"v":0.89,"d":"89%"},3.33,"B+"]
[null,null,{"$f":"IF(Paramètres!C13=\"\",\"\",Paramètres!C13)","v":"Programmation avancée en Java"},{"v":0.75,"d":"75%"},"","","","","","","","","","","","","","","","","","","","","","","","",{"$f":"IFERROR(AVERAGEIFS(tblNotesCours[Note],tblNotesCours[Cours],Calculs!$C10,tblNotesCours[Type],Calculs!AC$5)*Paramètres!E13,\"\")","v":""},{"$f":"IFERROR(AVERAGEIFS(tblNotesCours[Note],tblNotesCours[Cours],Calculs!$C10,tblNotesCours[Type],Calculs!AD$5)*Paramètres!F13,\"\")","v":""},{"$f":"IFERROR(AVERAGEIFS(tblNotesCours[Note],tblNotesCours[Cours],Calculs!$C10,tblNotesCours[Type],Calculs!AE$5)*Paramètres!G13,\"\")","v":""},{"$f":"IFERROR(AVERAGEIFS(tblNotesCours[Note],tblNotesCours[Cours],Calculs!$C10,tblNotesCours[Type],Calculs!AF$5)*Paramètres!H13,\"\")","v":""},{"$f":"IFERROR(AVERAGEIFS(tblNotesCours[Note],tblNotesCours[Cours],Calculs!$C10,tblNotesCours[Type],Calculs!AG$5)*Paramètres!I13,\"\")","v":0.15000000000000002},{"$f":"IFERROR(AVERAGEIFS(tblNotesCours[Note],tblNotesCours[Cours],Calculs!$C10,tblNotesCours[Type],Calculs!AH$5)*Paramètres!J13,\"\")","v":""},{"$f":"IFERROR(AVERAGEIFS(tblNotesCours[Note],tblNotesCours[Cours],Calculs!$C10,tblNotesCours[Type],Calculs!AI$5)*Paramètres!K13,\"\")","v":""},0.15000000000000002,{"$f":"SUMIFS(Paramètres!E13:K13,Calculs!AC10:AI10,\">0\")","v":0.2},{"v":0.7500000000000001,"d":"75%"},2,"C"]
[null,null,{"$f":"IF(Paramètres!C14=\"\",\"\",Paramètres!C14)","v":"Espagnol"},{"v":0.5,"d":"50%"},"","","","","","","","","","","","","","","","","","","","","","","","",{"$f":"IFERROR(AVERAGEIFS(tblNotesCours[Note],tblNotesCours[Cours],Calculs!$C11,tblNotesCours[Type],Calculs!AC$5)*Paramètres!E14,\"\")","v":0.05},{"$f":"IFERROR(AVERAGEIFS(tblNotesCours[Note],tblNotesCours[Cours],Calculs!$C11,tblNotesCours[Type],Calculs!AD$5)*Paramètres!F14,\"\")","v":""},{"$f":"IFERROR(AVERAGEIFS(tblNotesCours[Note],tblNotesCours[Cours],Calculs!$C11,tblNotesCours[Type],Calculs!AE$5)*Paramètres!G14,\"\")","v":""},{"$f":"IFERROR(AVERAGEIFS(tblNotesCours[Note],tblNotesCours[Cours],Calculs!$C11,tblNotesCours[Type],Calculs!AF$5)*Paramètres!H14,\"\")","v":""},{"$f":"IFERROR(AVERAGEIFS(tblNotesCours[Note],tblNotesCours[Cours],Calculs!$C11,tblNotesCours[Type],Calculs!AG$5)*Paramètres!I14,\"\")","v":""},{"$f":"IFERROR(AVERAGEIFS(tblNotesCours[Note],tblNotesCours[Cours],Calculs!$C11,tblNotesCours[Type],Calculs!AH$5)*Paramètres!J14,\"\")","v":""},{"$f":"IFERROR(AVERAGEIFS(tblNotesCours[Note],tblNotesCours[Cours],Calculs!$C11,tblNotesCours[Type],Calculs!AI$5)*Paramètres!K14,\"\")","v":""},0.05,{"$f":"SUMIFS(Paramètres!E14:K14,Calculs!AC11:AI11,\">0\")","v":0.1},{"v":0.5,"d":"50%"},0,"F"]
[null,null,{"$f":"IF(Paramètres!C15=\"\",\"\",Paramètres!C15)","v":"Composition"},{"v":0.95,"d":"95%"},"","","","","","","","","","","","","","","","","","","","","","","","",{"$f":"IFERROR(AVERAGEIFS(tblNotesCours[Note],tblNotesCours[Cours],Calculs!$C12,tblNotesCours[Type],Calculs!AC$5)*Paramètres!E15,\"\")","v":""},{"$f":"IFERROR(AVERAGEIFS(tblNotesCours[Note],tblNotesCours[Cours],Calculs!$C12,tblNotesCours[Type],Calculs!AD$5)*Paramètres!F15,\"\")","v":0.1425},{"$f":"IFERROR(AVERAGEIFS(tblNotesCours[Note],tblNotesCours[Cours],Calculs!$C12,tblNotesCours[Type],Calculs!AE$5)*Paramètres!G15,\"\")","v":""},{"$f":"IFERROR(AVERAGEIFS(tblNotesCours[Note],tblNotesCours[Cours],Calculs!$C12,tblNotesCours[Type],Calculs!AF$5)*Paramètres!H15,\"\")","v":""},{"$f":"IFERROR(AVERAGEIFS(tblNotesCours[Note],tblNotesCours[Cours],Calculs!$C12,tblNotesCours[Type],Calculs!AG$5)*Paramètres!I15,\"\")","v":""},{"$f":"IFERROR(AVERAGEIFS(tblNotesCours[Note],tblNotesCours[Cours],Calculs!$C12,tblNotesCours[Type],Calculs!AH$5)*Paramètres!J15,\"\")","v":""},{"$f":"IFERROR(AVERAGEIFS(tblNotesCours[Note],tblNotesCours[Cours],Calculs!$C12,tblNotesCours[Type],Calculs!AI$5)*Paramètres!K15,\"\")","v":""},0.1425,{"$f":"SUMIFS(Paramètres!E15:K15,Calculs!AC12:AI12,\">0\")","v":0.15},{"v":0.95,"d":"95%"},4,"A"]
[null,null,{"$f":"IF(Paramètres!C16=\"\",\"\",Paramètres!C16)","v":""},"","","","","","","","","","","","","","","","","","","","","","","","","",{"$f":"IFERROR(AVERAGEIFS(tblNotesCours[Note],tblNotesCours[Cours],Calculs!$C13,tblNotesCours[Type],Calculs!AC$5)*Paramètres!E16,\"\")","v":""},{"$f":"IFERROR(AVERAGEIFS(tblNotesCours[Note],tblNotesCours[Cours],Calculs!$C13,tblNotesCours[Type],Calculs!AD$5)*Paramètres!F16,\"\")","v":""},{"$f":"IFERROR(AVERAGEIFS(tblNotesCours[Note],tblNotesCours[Cours],Calculs!$C13,tblNotesCours[Type],Calculs!AE$5)*Paramètres!G16,\"\")","v":""},{"$f":"IFERROR(AVERAGEIFS(tblNotesCours[Note],tblNotesCours[Cours],Calculs!$C13,tblNotesCours[Type],Calculs!AF$5)*Paramètres!H16,\"\")","v":""},{"$f":"IFERROR(AVERAGEIFS(tblNotesCours[Note],tblNotesCours[Cours],Calculs!$C13,tblNotesCours[Type],Calculs!AG$5)*Paramètres!I16,\"\")","v":""},{"$f":"IFERROR(AVERAGEIFS(tblNotesCours[Note],tblNotesCours[Cours],Calculs!$C13,tblNotesCours[Type],Calculs!AH$5)*Paramètres!J16,\"\")","v":""},{"$f":"IFERROR(AVERAGEIFS(tblNotesCours[Note],tblNotesCours[Cours],Calculs!$C13,tblNotesCours[Type],Calculs!AI$5)*Paramètres!K16,\"\")","v":""},0,{"$f":"SUMIFS(Paramètres!E16:K16,Calculs!AC13:AI13,\">0\")","v":0},"","",""]
[null,null,{"$f":"IF(Paramètres!C17=\"\",\"\",Paramètres!C17)","v":""},"","","","","","","","","","","","","","","","","","","","","","","","","",{"$f":"IFERROR(AVERAGEIFS(tblNotesCours[Note],tblNotesCours[Cours],Calculs!$C14,tblNotesCours[Type],Calculs!AC$5)*Paramètres!E17,\"\")","v":""},{"$f":"IFERROR(AVERAGEIFS(tblNotesCours[Note],tblNotesCours[Cours],Calculs!$C14,tblNotesCours[Type],Calculs!AD$5)*Paramètres!F17,\"\")","v":""},{"$f":"IFERROR(AVERAGEIFS(tblNotesCours[Note],tblNotesCours[Cours],Calculs!$C14,tblNotesCours[Type],Calculs!AE$5)*Paramètres!G17,\"\")","v":""},{"$f":"IFERROR(AVERAGEIFS(tblNotesCours[Note],tblNotesCours[Cours],Calculs!$C14,tblNotesCours[Type],Calculs!AF$5)*Paramètres!H17,\"\")","v":""},{"$f":"IFERROR(AVERAGEIFS(tblNotesCours[Note],tblNotesCours[Cours],Calculs!$C14,tblNotesCours[Type],Calculs!AG$5)*Paramètres!I17,\"\")","v":""},{"$f":"IFERROR(AVERAGEIFS(tblNotesCours[Note],tblNotesCours[Cours],Calculs!$C14,tblNotesCours[Type],Calculs!AH$5)*Paramètres!J17,\"\")","v":""},{"$f":"IFERROR(AVERAGEIFS(tblNotesCours[Note],tblNotesCours[Cours],Calculs!$C14,tblNotesCours[Type],Calculs!AI$5)*Paramètres!K17,\"\")","v":""},0,{"$f":"SUMIFS(Paramètres!E17:K17,Calculs!AC14:AI14,\">0\")","v":0},"","",""]
[null,null,{"$f":"IF(Paramètres!C18=\"\",\"\",Paramètres!C18)","v":""},"","","","","","","","","","","","","","","","","","","","","","","","","",{"$f":"IFERROR(AVERAGEIFS(tblNotesCours[Note],tblNotesCours[Cours],Calculs!$C15,tblNotesCours[Type],Calculs!AC$5)*Paramètres!E18,\"\")","v":""},{"$f":"IFERROR(AVERAGEIFS(tblNotesCours[Note],tblNotesCours[Cours],Calculs!$C15,tblNotesCours[Type],Calculs!AD$5)*Paramètres!F18,\"\")","v":""},{"$f":"IFERROR(AVERAGEIFS(tblNotesCours[Note],tblNotesCours[Cours],Calculs!$C15,tblNotesCours[Type],Calculs!AE$5)*Paramètres!G18,\"\")","v":""},{"$f":"IFERROR(AVERAGEIFS(tblNotesCours[Note],tblNotesCours[Cours],Calculs!$C15,tblNotesCours[Type],Calculs!AF$5)*Paramètres!H18,\"\")","v":""},{"$f":"IFERROR(AVERAGEIFS(tblNotesCours[Note],tblNotesCours[Cours],Calculs!$C15,tblNotesCours[Type],Calculs!AG$5)*Paramètres!I18,\"\")","v":""},{"$f":"IFERROR(AVERAGEIFS(tblNotesCours[Note],tblNotesCours[Cours],Calculs!$C15,tblNotesCours[Type],Calculs!AH$5)*Paramètres!J18,\"\")","v":""},{"$f":"IFERROR(AVERAGEIFS(tblNotesCours[Note],tblNotesCours[Cours],Calculs!$C15,tblNotesCours[Type],Calculs!AI$5)*Paramètres!K18,\"\")","v":""},0,{"$f":"SUMIFS(Paramètres!E18:K18,Calculs!AC15:AI15,\">0\")","v":0},"","",""]
[null,null,{"$f":"IF(Paramètres!C19=\"\",\"\",Paramètres!C19)","v":""},"","","","","","","","","","","","","","","","","","","","","","","","","",{"$f":"IFERROR(AVERAGEIFS(tblNotesCours[Note],tblNotesCours[Cours],Calculs!$C16,tblNotesCours[Type],Calculs!AC$5)*Paramètres!E19,\"\")","v":""},{"$f":"IFERROR(AVERAGEIFS(tblNotesCours[Note],tblNotesCours[Cours],Calculs!$C16,tblNotesCours[Type],Calculs!AD$5)*Paramètres!F19,\"\")","v":""},{"$f":"IFERROR(AVERAGEIFS(tblNotesCours[Note],tblNotesCours[Cours],Calculs!$C16,tblNotesCours[Type],Calculs!AE$5)*Paramètres!G19,\"\")","v":""},{"$f":"IFERROR(AVERAGEIFS(tblNotesCours[Note],tblNotesCours[Cours],Calculs!$C16,tblNotesCours[Type],Calculs!AF$5)*Paramètres!H19,\"\")","v":""},{"$f":"IFERROR(AVERAGEIFS(tblNotesCours[Note],tblNotesCours[Cours],Calculs!$C16,tblNotesCours[Type],Calculs!AG$5)*Paramètres!I19,\"\")","v":""},{"$f":"IFERROR(AVERAGEIFS(tblNotesCours[Note],tblNotesCours[Cours],Calculs!$C16,tblNotesCours[Type],Calculs!AH$5)*Paramètres!J19,\"\")","v":""},{"$f":"IFERROR(AVERAGEIFS(tblNotesCours[Note],tblNotesCours[Cours],Calculs!$C16,tblNotesCours[Type],Calculs!AI$5)*Paramètres!K19,\"\")","v":""},0,{"$f":"SUMIFS(Paramètres!E19:K19,Calculs!AC16:AI16,\">0\")","v":0},"","",""]
[null,null,{"$f":"IF(Paramètres!C20=\"\",\"\",Paramètres!C20)","v":""},"","","","","","","","","","","","","","","","","","","","","","","","","",{"$f":"IFERROR(AVERAGEIFS(tblNotesCours[Note],tblNotesCours[Cours],Calculs!$C17,tblNotesCours[Type],Calculs!AC$5)*Paramètres!E20,\"\")","v":""},{"$f":"IFERROR(AVERAGEIFS(tblNotesCours[Note],tblNotesCours[Cours],Calculs!$C17,tblNotesCours[Type],Calculs!AD$5)*Paramètres!F20,\"\")","v":""},{"$f":"IFERROR(AVERAGEIFS(tblNotesCours[Note],tblNotesCours[Cours],Calculs!$C17,tblNotesCours[Type],Calculs!AE$5)*Paramètres!G20,\"\")","v":""},{"$f":"IFERROR(AVERAGEIFS(tblNotesCours[Note],tblNotesCours[Cours],Calculs!$C17,tblNotesCours[Type],Calculs!AF$5)*Paramètres!H20,\"\")","v":""},{"$f":"IFERROR(AVERAGEIFS(tblNotesCours[Note],tblNotesCours[Cours],Calculs!$C17,tblNotesCours[Type],Calculs!AG$5)*Paramètres!I20,\"\")","v":""},{"$f":"IFERROR(AVERAGEIFS(tblNotesCours[Note],tblNotesCours[Cours],Calculs!$C17,tblNotesCours[Type],Calculs!AH$5)*Paramètres!J20,\"\")","v":""},{"$f":"IFERROR(AVERAGEIFS(tblNotesCours[Note],tblNotesCours[Cours],Calculs!$C17,tblNotesCours[Type],Calculs!AI$5)*Paramètres!K20,\"\")","v":""},0,{"$f":"SUMIFS(Paramètres!E20:K20,Calculs!AC17:AI17,\">0\")","v":0},"","",""]
[null,null,{"$f":"IF(Paramètres!C21=\"\",\"\",Paramètres!C21)","v":""},"","","","","","","","","","","","","","","","","","","","","","","","","",{"$f":"IFERROR(AVERAGEIFS(tblNotesCours[Note],tblNotesCours[Cours],Calculs!$C18,tblNotesCours[Type],Calculs!AC$5)*Paramètres!E21,\"\")","v":""},{"$f":"IFERROR(AVERAGEIFS(tblNotesCours[Note],tblNotesCours[Cours],Calculs!$C18,tblNotesCours[Type],Calculs!AD$5)*Paramètres!F21,\"\")","v":""},{"$f":"IFERROR(AVERAGEIFS(tblNotesCours[Note],tblNotesCours[Cours],Calculs!$C18,tblNotesCours[Type],Calculs!AE$5)*Paramètres!G21,\"\")","v":""},{"$f":"IFERROR(AVERAGEIFS(tblNotesCours[Note],tblNotesCours[Cours],Calculs!$C18,tblNotesCours[Type],Calculs!AF$5)*Paramètres!H21,\"\")","v":""},{"$f":"IFERROR(AVERAGEIFS(tblNotesCours[Note],tblNotesCours[Cours],Calculs!$C18,tblNotesCours[Type],Calculs!AG$5)*Paramètres!I21,\"\")","v":""},{"$f":"IFERROR(AVERAGEIFS(tblNotesCours[Note],tblNotesCours[Cours],Calculs!$C18,tblNotesCours[Type],Calculs!AH$5)*Paramètres!J21,\"\")","v":""},{"$f":"IFERROR(AVERAGEIFS(tblNotesCours[Note],tblNotesCours[Cours],Calculs!$C18,tblNotesCours[Type],Calculs!AI$5)*Paramètres!K21,\"\")","v":""},0,{"$f":"SUMIFS(Paramètres!E21:K21,Calculs!AC18:AI18,\">0\")","v":0},"","",""]
[null,null,{"$f":"IF(Paramètres!C22=\"\",\"\",Paramètres!C22)","v":""},"","","","","","","","","","","","","","","","","","","","","","","","","",{"$f":"IFERROR(AVERAGEIFS(tblNotesCours[Note],tblNotesCours[Cours],Calculs!$C19,tblNotesCours[Type],Calculs!AC$5)*Paramètres!E22,\"\")","v":""},{"$f":"IFERROR(AVERAGEIFS(tblNotesCours[Note],tblNotesCours[Cours],Calculs!$C19,tblNotesCours[Type],Calculs!AD$5)*Paramètres!F22,\"\")","v":""},{"$f":"IFERROR(AVERAGEIFS(tblNotesCours[Note],tblNotesCours[Cours],Calculs!$C19,tblNotesCours[Type],Calculs!AE$5)*Paramètres!G22,\"\")","v":""},{"$f":"IFERROR(AVERAGEIFS(tblNotesCours[Note],tblNotesCours[Cours],Calculs!$C19,tblNotesCours[Type],Calculs!AF$5)*Paramètres!H22,\"\")","v":""},{"$f":"IFERROR(AVERAGEIFS(tblNotesCours[Note],tblNotesCours[Cours],Calculs!$C19,tblNotesCours[Type],Calculs!AG$5)*Paramètres!I22,\"\")","v":""},{"$f":"IFERROR(AVERAGEIFS(tblNotesCours[Note],tblNotesCours[Cours],Calculs!$C19,tblNotesCours[Type],Calculs!AH$5)*Paramètres!J22,\"\")","v":""},{"$f":"IFERROR(AVERAGEIFS(tblNotesCours[Note],tblNotesCours[Cours],Calculs!$C19,tblNotesCours[Type],Calculs!AI$5)*Paramètres!K22,\"\")","v":""},0,{"$f":"SUMIFS(Paramètres!E22:K22,Calculs!AC19:AI19,\">0\")","v":0},"","",""]
[null,null,{"$f":"IF(Paramètres!C23=\"\",\"\",Paramètres!C23)","v":""},"","","","","","","","","","","","","","","","","","","","","","","","","",{"$f":"IFERROR(AVERAGEIFS(tblNotesCours[Note],tblNotesCours[Cours],Calculs!$C20,tblNotesCours[Type],Calculs!AC$5)*Paramètres!E23,\"\")","v":""},{"$f":"IFERROR(AVERAGEIFS(tblNotesCours[Note],tblNotesCours[Cours],Calculs!$C20,tblNotesCours[Type],Calculs!AD$5)*Paramètres!F23,\"\")","v":""},{"$f":"IFERROR(AVERAGEIFS(tblNotesCours[Note],tblNotesCours[Cours],Calculs!$C20,tblNotesCours[Type],Calculs!AE$5)*Paramètres!G23,\"\")","v":""},{"$f":"IFERROR(AVERAGEIFS(tblNotesCours[Note],tblNotesCours[Cours],Calculs!$C20,tblNotesCours[Type],Calculs!AF$5)*Paramètres!H23,\"\")","v":""},{"$f":"IFERROR(AVERAGEIFS(tblNotesCours[Note],tblNotesCours[Cours],Calculs!$C20,tblNotesCours[Type],Calculs!AG$5)*Paramètres!I23,\"\")","v":""},{"$f":"IFERROR(AVERAGEIFS(tblNotesCours[Note],tblNotesCours[Cours],Calculs!$C20,tblNotesCours[Type],Calculs!AH$5)*Paramètres!J23,\"\")","v":""},{"$f":"IFERROR(AVERAGEIFS(tblNotesCours[Note],tblNotesCours[Cours],Calculs!$C20,tblNotesCours[Type],Calculs!AI$5)*Paramètres!K23,\"\")","v":""},0,{"$f":"SUMIFS(Paramètres!E23:K23,Calculs!AC20:AI20,\">0\")","v":0},"","",""]
[null,null,{"$f":"IF(Paramètres!C24=\"\",\"\",Paramètres!C24)","v":""},"","","","","","","","","","","","","","","","","","","","","","","","","",{"$f":"IFERROR(AVERAGEIFS(tblNotesCours[Note],tblNotesCours[Cours],Calculs!$C21,tblNotesCours[Type],Calculs!AC$5)*Paramètres!E24,\"\")","v":""},{"$f":"IFERROR(AVERAGEIFS(tblNotesCours[Note],tblNotesCours[Cours],Calculs!$C21,tblNotesCours[Type],Calculs!AD$5)*Paramètres!F24,\"\")","v":""},{"$f":"IFERROR(AVERAGEIFS(tblNotesCours[Note],tblNotesCours[Cours],Calculs!$C21,tblNotesCours[Type],Calculs!AE$5)*Paramètres!G24,\"\")","v":""},{"$f":"IFERROR(AVERAGEIFS(tblNotesCours[Note],tblNotesCours[Cours],Calculs!$C21,tblNotesCours[Type],Calculs!AF$5)*Paramètres!H24,\"\")","v":""},{"$f":"IFERROR(AVERAGEIFS(tblNotesCours[Note],tblNotesCours[Cours],Calculs!$C21,tblNotesCours[Type],Calculs!AG$5)*Paramètres!I24,\"\")","v":""},{"$f":"IFERROR(AVERAGEIFS(tblNotesCours[Note],tblNotesCours[Cours],Calculs!$C21,tblNotesCours[Type],Calculs!AH$5)*Paramètres!J24,\"\")","v":""},{"$f":"IFERROR(AVERAGEIFS(tblNotesCours[Note],tblNotesCours[Cours],Calculs!$C21,tblNotesCours[Type],Calculs!AI$5)*Paramètres!K24,\"\")","v":""},0,{"$f":"SUMIFS(Paramètres!E24:K24,Calculs!AC21:AI21,\">0\")","v":0},"","",""]
[null,null,{"$f":"IF(Paramètres!C25=\"\",\"\",Paramètres!C25)","v":""},"","","","","","","","","","","","","","","","","","","","","","","","","",{"$f":"IFERROR(AVERAGEIFS(tblNotesCours[Note],tblNotesCours[Cours],Calculs!$C22,tblNotesCours[Type],Calculs!AC$5)*Paramètres!E25,\"\")","v":""},{"$f":"IFERROR(AVERAGEIFS(tblNotesCours[Note],tblNotesCours[Cours],Calculs!$C22,tblNotesCours[Type],Calculs!AD$5)*Paramètres!F25,\"\")","v":""},{"$f":"IFERROR(AVERAGEIFS(tblNotesCours[Note],tblNotesCours[Cours],Calculs!$C22,tblNotesCours[Type],Calculs!AE$5)*Paramètres!G25,\"\")","v":""},{"$f":"IFERROR(AVERAGEIFS(tblNotesCours[Note],tblNotesCours[Cours],Calculs!$C22,tblNotesCours[Type],Calculs!AF$5)*Paramètres!H25,\"\")","v":""},{"$f":"IFERROR(AVERAGEIFS(tblNotesCours[Note],tblNotesCours[Cours],Calculs!$C22,tblNotesCours[Type],Calculs!AG$5)*Paramètres!I25,\"\")","v":""},{"$f":"IFERROR(AVERAGEIFS(tblNotesCours[Note],tblNotesCours[Cours],Calculs!$C22,tblNotesCours[Type],Calculs!AH$5)*Paramètres!J25,\"\")","v":""},{"$f":"IFERROR(AVERAGEIFS(tblNotesCours[Note],tblNotesCours[Cours],Calculs!$C22,tblNotesCours[Type],Calculs!AI$5)*Paramètres!K25,\"\")","v":""},0,{"$f":"SUMIFS(Paramètres!E25:K25,Calculs!AC22:AI22,\">0\")","v":0},"","",""]
[null,null,{"$f":"IF(Paramètres!C26=\"\",\"\",Paramètres!C26)","v":""},"","","","","","","","","","","","","","","","","","","","","","","","","",{"$f":"IFERROR(AVERAGEIFS(tblNotesCours[Note],tblNotesCours[Cours],Calculs!$C23,tblNotesCours[Type],Calculs!AC$5)*Paramètres!E26,\"\")","v":""},{"$f":"IFERROR(AVERAGEIFS(tblNotesCours[Note],tblNotesCours[Cours],Calculs!$C23,tblNotesCours[Type],Calculs!AD$5)*Paramètres!F26,\"\")","v":""},{"$f":"IFERROR(AVERAGEIFS(tblNotesCours[Note],tblNotesCours[Cours],Calculs!$C23,tblNotesCours[Type],Calculs!AE$5)*Paramètres!G26,\"\")","v":""},{"$f":"IFERROR(AVERAGEIFS(tblNotesCours[Note],tblNotesCours[Cours],Calculs!$C23,tblNotesCours[Type],Calculs!AF$5)*Paramètres!H26,\"\")","v":""},{"$f":"IFERROR(AVERAGEIFS(tblNotesCours[Note],tblNotesCours[Cours],Calculs!$C23,tblNotesCours[Type],Calculs!AG$5)*Paramètres!I26,\"\")","v":""},{"$f":"IFERROR(AVERAGEIFS(tblNotesCours[Note],tblNotesCours[Cours],Calculs!$C23,tblNotesCours[Type],Calculs!AH$5)*Paramètres!J26,\"\")","v":""},{"$f":"IFERROR(AVERAGEIFS(tblNotesCours[Note],tblNotesCours[Cours],Calculs!$C23,tblNotesCours[Type],Calculs!AI$5)*Paramètres!K26,\"\")","v":""},0,{"$f":"SUMIFS(Paramètres!E26:K26,Calculs!AC23:AI23,\">0\")","v":0},"","",""]
[null,null,{"$f":"IF(Paramètres!C27=\"\",\"\",Paramètres!C27)","v":""},"","","","","","","","","","","","","","","","","","","","","","","","","",{"$f":"IFERROR(AVERAGEIFS(tblNotesCours[Note],tblNotesCours[Cours],Calculs!$C24,tblNotesCours[Type],Calculs!AC$5)*Paramètres!E27,\"\")","v":""},{"$f":"IFERROR(AVERAGEIFS(tblNotesCours[Note],tblNotesCours[Cours],Calculs!$C24,tblNotesCours[Type],Calculs!AD$5)*Paramètres!F27,\"\")","v":""},{"$f":"IFERROR(AVERAGEIFS(tblNotesCours[Note],tblNotesCours[Cours],Calculs!$C24,tblNotesCours[Type],Calculs!AE$5)*Paramètres!G27,\"\")","v":""},{"$f":"IFERROR(AVERAGEIFS(tblNotesCours[Note],tblNotesCours[Cours],Calculs!$C24,tblNotesCours[Type],Calculs!AF$5)*Paramètres!H27,\"\")","v":""},{"$f":"IFERROR(AVERAGEIFS(tblNotesCours[Note],tblNotesCours[Cours],Calculs!$C24,tblNotesCours[Type],Calculs!AG$5)*Paramètres!I27,\"\")","v":""},{"$f":"IFERROR(AVERAGEIFS(tblNotesCours[Note],tblNotesCours[Cours],Calculs!$C24,tblNotesCours[Type],Calculs!AH$5)*Paramètres!J27,\"\")","v":""},{"$f":"IFERROR(AVERAGEIFS(tblNotesCours[Note],tblNotesCours[Cours],Calculs!$C24,tblNotesCours[Type],Calculs!AI$5)*Paramètres!K27,\"\")","v":""},0,{"$f":"SUMIFS(Paramètres!E27:K27,Calculs!AC24:AI24,\">0\")","v":0},"","",""]
[null,null,{"$f":"IF(Paramètres!C28=\"\",\"\",Paramètres!C28)","v":""},"","","","","","","","","","","","","","","","","","","","","","","","","",{"$f":"IFERROR(AVERAGEIFS(tblNotesCours[Note],tblNotesCours[Cours],Calculs!$C25,tblNotesCours[Type],Calculs!AC$5)*Paramètres!E28,\"\")","v":""},{"$f":"IFERROR(AVERAGEIFS(tblNotesCours[Note],tblNotesCours[Cours],Calculs!$C25,tblNotesCours[Type],Calculs!AD$5)*Paramètres!F28,\"\")","v":""},{"$f":"IFERROR(AVERAGEIFS(tblNotesCours[Note],tblNotesCours[Cours],Calculs!$C25,tblNotesCours[Type],Calculs!AE$5)*Paramètres!G28,\"\")","v":""},{"$f":"IFERROR(AVERAGEIFS(tblNotesCours[Note],tblNotesCours[Cours],Calculs!$C25,tblNotesCours[Type],Calculs!AF$5)*Paramètres!H28,\"\")","v":""},{"$f":"IFERROR(AVERAGEIFS(tblNotesCours[Note],tblNotesCours[Cours],Calculs!$C25,tblNotesCours[Type],Calculs!AG$5)*Paramètres!I28,\"\")","v":""},{"$f":"IFERROR(AVERAGEIFS(tblNotesCours[Note],tblNotesCours[Cours],Calculs!$C25,tblNotesCours[Type],Calculs!AH$5)*Paramètres!J28,\"\")","v":""},{"$f":"IFERROR(AVERAGEIFS(tblNotesCours[Note],tblNotesCours[Cours],Calculs!$C25,tblNotesCours[Type],Calculs!AI$5)*Paramètres!K28,\"\")","v":""},0,{"$f":"SUMIFS(Paramètres!E28:K28,Calculs!AC25:AI25,\">0\")","v":0},"","",""]
[null,null,{"$f":"IF(Paramètres!C29=\"\",\"\",Paramètres!C29)","v":""},"","","","","","","","","","","","","","","","","","","","","","","","","",{"$f":"IFERROR(AVERAGEIFS(tblNotesCours[Note],tblNotesCours[Cours],Calculs!$C26,tblNotesCours[Type],Calculs!AC$5)*Paramètres!E29,\"\")","v":""},{"$f":"IFERROR(AVERAGEIFS(tblNotesCours[Note],tblNotesCours[Cours],Calculs!$C26,tblNotesCours[Type],Calculs!AD$5)*Paramètres!F29,\"\")","v":""},{"$f":"IFERROR(AVERAGEIFS(tblNotesCours[Note],tblNotesCours[Cours],Calculs!$C26,tblNotesCours[Type],Calculs!AE$5)*Paramètres!G29,\"\")","v":""},{"$f":"IFERROR(AVERAGEIFS(tblNotesCours[Note],tblNotesCours[Cours],Calculs!$C26,tblNotesCours[Type],Calculs!AF$5)*Paramètres!H29,\"\")","v":""},{"$f":"IFERROR(AVERAGEIFS(tblNotesCours[Note],tblNotesCours[Cours],Calculs!$C26,tblNotesCours[Type],Calculs!AG$5)*Paramètres!I29,\"\")","v":""},{"$f":"IFERROR(AVERAGEIFS(tblNotesCours[Note],tblNotesCours[Cours],Calculs!$C26,tblNotesCours[Type],Calculs!AH$5)*Paramètres!J29,\"\")","v":""},{"$f":"IFERROR(AVERAGEIFS(tblNotesCours[Note],tblNotesCours[Cours],Calculs!$C26,tblNotesCours[Type],Calculs!AI$5)*Paramètres!K29,\"\")","v":""},0,{"$f":"SUMIFS(Paramètres!E29:K29,Calculs!AC26:AI26,\">0\")","v":0},"","",""]
[null,null,{"$f":"IF(Paramètres!C30=\"\",\"\",Paramètres!C30)","v":""},"","","","","","","","","","","","","","","","","","","","","","","","","",{"$f":"IFERROR(AVERAGEIFS(tblNotesCours[Note],tblNotesCours[Cours],Calculs!$C27,tblNotesCours[Type],Calculs!AC$5)*Paramètres!E30,\"\")","v":""},{"$f":"IFERROR(AVERAGEIFS(tblNotesCours[Note],tblNotesCours[Cours],Calculs!$C27,tblNotesCours[Type],Calculs!AD$5)*Paramètres!F30,\"\")","v":""},{"$f":"IFERROR(AVERAGEIFS(tblNotesCours[Note],tblNotesCours[Cours],Calculs!$C27,tblNotesCours[Type],Calculs!AE$5)*Paramètres!G30,\"\")","v":""},{"$f":"IFERROR(AVERAGEIFS(tblNotesCours[Note],tblNotesCours[Cours],Calculs!$C27,tblNotesCours[Type],Calculs!AF$5)*Paramètres!H30,\"\")","v":""},{"$f":"IFERROR(AVERAGEIFS(tblNotesCours[Note],tblNotesCours[Cours],Calculs!$C27,tblNotesCours[Type],Calculs!AG$5)*Paramètres!I30,\"\")","v":""},{"$f":"IFERROR(AVERAGEIFS(tblNotesCours[Note],tblNotesCours[Cours],Calculs!$C27,tblNotesCours[Type],Calculs!AH$5)*Paramètres!J30,\"\")","v":""},{"$f":"IFERROR(AVERAGEIFS(tblNotesCours[Note],tblNotesCours[Cours],Calculs!$C27,tblNotesCours[Type],Calculs!AI$5)*Paramètres!K30,\"\")","v":""},0,{"$f":"SUMIFS(Paramètres!E30:K30,Calculs!AC27:AI27,\">0\")","v":0},"","",""]
[null,null,{"$f":"IF(Paramètres!C31=\"\",\"\",Paramètres!C31)","v":""},"","","","","","","","","","","","","","","","","","","","","","","","","",{"$f":"IFERROR(AVERAGEIFS(tblNotesCours[Note],tblNotesCours[Cours],Calculs!$C28,tblNotesCours[Type],Calculs!AC$5)*Paramètres!E31,\"\")","v":""},{"$f":"IFERROR(AVERAGEIFS(tblNotesCours[Note],tblNotesCours[Cours],Calculs!$C28,tblNotesCours[Type],Calculs!AD$5)*Paramètres!F31,\"\")","v":""},{"$f":"IFERROR(AVERAGEIFS(tblNotesCours[Note],tblNotesCours[Cours],Calculs!$C28,tblNotesCours[Type],Calculs!AE$5)*Paramètres!G31,\"\")","v":""},{"$f":"IFERROR(AVERAGEIFS(tblNotesCours[Note],tblNotesCours[Cours],Calculs!$C28,tblNotesCours[Type],Calculs!AF$5)*Paramètres!H31,\"\")","v":""},{"$f":"IFERROR(AVERAGEIFS(tblNotesCours[Note],tblNotesCours[Cours],Calculs!$C28,tblNotesCours[Type],Calculs!AG$5)*Paramètres!I31,\"\")","v":""},{"$f":"IFERROR(AVERAGEIFS(tblNotesCours[Note],tblNotesCours[Cours],Calculs!$C28,tblNotesCours[Type],Calculs!AH$5)*Paramètres!J31,\"\")","v":""},{"$f":"IFERROR(AVERAGEIFS(tblNotesCours[Note],tblNotesCours[Cours],Calculs!$C28,tblNotesCours[Type],Calculs!AI$5)*Paramètres!K31,\"\")","v":""},0,{"$f":"SUMIFS(Paramètres!E31:K31,Calculs!AC28:AI28,\">0\")","v":0},"","",""]
[null,null,{"$f":"IF(Paramètres!C32=\"\",\"\",Paramètres!C32)","v":""},"","","","","","","","","","","","","","","","","","","","","","","","","",{"$f":"IFERROR(AVERAGEIFS(tblNotesCours[Note],tblNotesCours[Cours],Calculs!$C29,tblNotesCours[Type],Calculs!AC$5)*Paramètres!E32,\"\")","v":""},{"$f":"IFERROR(AVERAGEIFS(tblNotesCours[Note],tblNotesCours[Cours],Calculs!$C29,tblNotesCours[Type],Calculs!AD$5)*Paramètres!F32,\"\")","v":""},{"$f":"IFERROR(AVERAGEIFS(tblNotesCours[Note],tblNotesCours[Cours],Calculs!$C29,tblNotesCours[Type],Calculs!AE$5)*Paramètres!G32,\"\")","v":""},{"$f":"IFERROR(AVERAGEIFS(tblNotesCours[Note],tblNotesCours[Cours],Calculs!$C29,tblNotesCours[Type],Calculs!AF$5)*Paramètres!H32,\"\")","v":""},{"$f":"IFERROR(AVERAGEIFS(tblNotesCours[Note],tblNotesCours[Cours],Calculs!$C29,tblNotesCours[Type],Calculs!AG$5)*Paramètres!I32,\"\")","v":""},{"$f":"IFERROR(AVERAGEIFS(tblNotesCours[Note],tblNotesCours[Cours],Calculs!$C29,tblNotesCours[Type],Calculs!AH$5)*Paramètres!J32,\"\")","v":""},{"$f":"IFERROR(AVERAGEIFS(tblNotesCours[Note],tblNotesCours[Cours],Calculs!$C29,tblNotesCours[Type],Calculs!AI$5)*Paramètres!K32,\"\")","v":""},0,{"$f":"SUMIFS(Paramètres!E32:K32,Calculs!AC29:AI29,\">0\")","v":0},"","",""]
[null,null,{"$f":"IF(Paramètres!C33=\"\",\"\",Paramètres!C33)","v":""},"","","","","","","","","","","","","","","","","","","","","","","","","",{"$f":"IFERROR(AVERAGEIFS(tblNotesCours[Note],tblNotesCours[Cours],Calculs!$C30,tblNotesCours[Type],Calculs!AC$5)*Paramètres!E33,\"\")","v":""},{"$f":"IFERROR(AVERAGEIFS(tblNotesCours[Note],tblNotesCours[Cours],Calculs!$C30,tblNotesCours[Type],Calculs!AD$5)*Paramètres!F33,\"\")","v":""},{"$f":"IFERROR(AVERAGEIFS(tblNotesCours[Note],tblNotesCours[Cours],Calculs!$C30,tblNotesCours[Type],Calculs!AE$5)*Paramètres!G33,\"\")","v":""},{"$f":"IFERROR(AVERAGEIFS(tblNotesCours[Note],tblNotesCours[Cours],Calculs!$C30,tblNotesCours[Type],Calculs!AF$5)*Paramètres!H33,\"\")","v":""},{"$f":"IFERROR(AVERAGEIFS(tblNotesCours[Note],tblNotesCours[Cours],Calculs!$C30,tblNotesCours[Type],Calculs!AG$5)*Paramètres!I33,\"\")","v":""},{"$f":"IFERROR(AVERAGEIFS(tblNotesCours[Note],tblNotesCours[Cours],Calculs!$C30,tblNotesCours[Type],Calculs!AH$5)*Paramètres!J33,\"\")","v":""},{"$f":"IFERROR(AVERAGEIFS(tblNotesCours[Note],tblNotesCours[Cours],Calculs!$C30,tblNotesCours[Type],Calculs!AI$5)*Paramètres!K33,\"\")","v":""},0,{"$f":"SUMIFS(Paramètres!E33:K33,Calculs!AC30:AI30,\">0\")","v":0},"","",""]
[]
[]
[null,1,{"$f":"'Suivi des notes'!C4&COUNTIF('Suivi des notes'!$C$4:C4,'Suivi des notes'!C4)","v":"Anglais1"}]
[null,2,{"$f":"'Suivi des notes'!C5&COUNTIF('Suivi des notes'!$C$4:C5,'Suivi des notes'!C5)","v":"Programmation avancée en Java1"}]
[null,3,{"$f":"'Suivi des notes'!C6&COUNTIF('Suivi des notes'!$C$4:C6,'Suivi des notes'!C6)","v":"Espagnol1"}]
[null,4,{"$f":"'Suivi des notes'!C7&COUNTIF('Suivi des notes'!$C$4:C7,'Suivi des notes'!C7)","v":"Physique théorique1"}]
[null,5,{"$f":"'Suivi des notes'!C8&COUNTIF('Suivi des notes'!$C$4:C8,'Suivi des notes'!C8)","v":"Anglais2"}]
[null,6,{"$f":"'Suivi des notes'!C9&COUNTIF('Suivi des notes'!$C$4:C9,'Suivi des notes'!C9)","v":"Anglais3"}]
[null,7,{"$f":"'Suivi des notes'!C10&COUNTIF('Suivi des notes'!$C$4:C10,'Suivi des notes'!C10)","v":"Composition1"}]
[null,8,{"$f":"'Suivi des notes'!C11&COUNTIF('Suivi des notes'!$C$4:C11,'Suivi des notes'!C11)","v":"Mathématiques 11"}]
[null,9,{"$f":"'Suivi des notes'!C12&COUNTIF('Suivi des notes'!$C$4:C12,'Suivi des notes'!C12)","v":"Mathématiques 21"}]
[null,10,{"$f":"'Suivi des notes'!C13&COUNTIF('Suivi des notes'!$C$4:C14,'Suivi des notes'!C13)","v":"Mathématiques 12"}]
[null,11,{"$f":"'Suivi des notes'!C14&COUNTIF('Suivi des notes'!$C$4:C14,'Suivi des notes'!C14)","v":"Mathématiques 22"}]
[null,12,{"$f":"'Suivi des notes'!C15&COUNTIF('Suivi des notes'!$C$4:C15,'Suivi des notes'!C15)","v":"0"}]
[null,13,{"$f":"'Suivi des notes'!C16&COUNTIF('Suivi des notes'!$C$4:C16,'Suivi des notes'!C16)","v":"0"}]
[null,14,{"$f":"'Suivi des notes'!C17&COUNTIF('Suivi des notes'!$C$4:C17,'Suivi des notes'!C17)","v":"0"}]
[null,15,{"$f":"'Suivi des notes'!C18&COUNTIF('Suivi des notes'!$C$4:C18,'Suivi des notes'!C18)","v":"0"}]
[null,16,{"$f":"'Suivi des notes'!C19&COUNTIF('Suivi des notes'!$C$4:C19,'Suivi des notes'!C19)","v":"0"}]
[null,17,{"$f":"'Suivi des notes'!C20&COUNTIF('Suivi des notes'!$C$4:C20,'Suivi des notes'!C20)","v":"0"}]
[null,18,{"$f":"'Suivi des notes'!C21&COUNTIF('Suivi des notes'!$C$4:C21,'Suivi des notes'!C21)","v":"0"}]
[null,19,{"$f":"'Suivi des notes'!C22&COUNTIF('Suivi des notes'!$C$4:C22,'Suivi des notes'!C22)","v":"0"}]
[null,20,{"$f":"'Suivi des notes'!C23&COUNTIF('Suivi des notes'!$C$4:C23,'Suivi des notes'!C23)","v":"0"}]
[null,21,{"$f":"'Suivi des notes'!C24&COUNTIF('Suivi des notes'!$C$4:C24,'Suivi des notes'!C24)","v":"0"}]
[null,22,{"$f":"'Suivi des notes'!C25&COUNTIF('Suivi des notes'!$C$4:C25,'Suivi des notes'!C25)","v":"0"}]
[null,23,{"$f":"'Suivi des notes'!C26&COUNTIF('Suivi des notes'!$C$4:C26,'Suivi des notes'!C26)","v":"0"}]
[null,24,{"$f":"'Suivi des notes'!C27&COUNTIF('Suivi des notes'!$C$4:C27,'Suivi des notes'!C27)","v":"0"}]
[null,25,{"$f":"'Suivi des notes'!C28&COUNTIF('Suivi des notes'!$C$4:C28,'Suivi des notes'!C28)","v":"0"}]
[null,26,{"$f":"'Suivi des notes'!C29&COUNTIF('Suivi des notes'!$C$4:C29,'Suivi des notes'!C29)","v":"0"}]
[null,27,{"$f":"'Suivi des notes'!C30&COUNTIF('Suivi des notes'!$C$4:C30,'Suivi des notes'!C30)","v":"0"}]
[null,28,{"$f":"'Suivi des notes'!C31&COUNTIF('Suivi des notes'!$C$4:C31,'Suivi des notes'!C31)","v":"0"}]
[null,29,{"$f":"'Suivi des notes'!C32&COUNTIF('Suivi des notes'!$C$4:C32,'Suivi des notes'!C32)","v":"0"}]
[null,30,{"$f":"'Suivi des notes'!C33&COUNTIF('Suivi des notes'!$C$4:C33,'Suivi des notes'!C33)","v":"0"}]
[null,31,{"$f":"'Suivi des notes'!C34&COUNTIF('Suivi des notes'!$C$4:C34,'Suivi des notes'!C34)","v":"0"}]
[null,32,{"$f":"'Suivi des notes'!C35&COUNTIF('Suivi des notes'!$C$4:C35,'Suivi des notes'!C35)","v":"0"}]
[null,33,{"$f":"'Suivi des notes'!C36&COUNTIF('Suivi des notes'!$C$4:C36,'Suivi des notes'!C36)","v":"0"}]
[null,34,{"$f":"'Suivi des notes'!C37&COUNTIF('Suivi des notes'!$C$4:C37,'Suivi des notes'!C37)","v":"0"}]
[null,35,{"$f":"'Suivi des notes'!C38&COUNTIF('Suivi des notes'!$C$4:C38,'Suivi des notes'!C38)","v":"0"}]
[null,36,{"$f":"'Suivi des notes'!C39&COUNTIF('Suivi des notes'!$C$4:C39,'Suivi des notes'!C39)","v":"0"}]
[null,37,{"$f":"'Suivi des notes'!C40&COUNTIF('Suivi des notes'!$C$4:C40,'Suivi des notes'!C40)","v":"0"}]
[null,38,{"$f":"'Suivi des notes'!C41&COUNTIF('Suivi des notes'!$C$4:C41,'Suivi des notes'!C41)","v":"0"}]
[null,39,{"$f":"'Suivi des notes'!C42&COUNTIF('Suivi des notes'!$C$4:C42,'Suivi des notes'!C42)","v":"0"}]
[null,40,{"$f":"'Suivi des notes'!C43&COUNTIF('Suivi des notes'!$C$4:C43,'Suivi des notes'!C43)","v":"0"}]
[null,41,{"$f":"'Suivi des notes'!C44&COUNTIF('Suivi des notes'!$C$4:C44,'Suivi des notes'!C44)","v":"0"}]
[null,42,{"$f":"'Suivi des notes'!C45&COUNTIF('Suivi des notes'!$C$4:C45,'Suivi des notes'!C45)","v":"0"}]
[null,43,{"$f":"'Suivi des notes'!C46&COUNTIF('Suivi des notes'!$C$4:C46,'Suivi des notes'!C46)","v":"0"}]
[null,44,{"$f":"'Suivi des notes'!C47&COUNTIF('Suivi des notes'!$C$4:C47,'Suivi des notes'!C47)","v":"0"}]
[null,45,{"$f":"'Suivi des notes'!C48&COUNTIF('Suivi des notes'!$C$4:C48,'Suivi des notes'!C48)","v":"0"}]
[null,46,{"$f":"'Suivi des notes'!C49&COUNTIF('Suivi des notes'!$C$4:C49,'Suivi des notes'!C49)","v":"0"}]
[null,47,{"$f":"'Suivi des notes'!C50&COUNTIF('Suivi des notes'!$C$4:C50,'Suivi des notes'!C50)","v":"0"}]
[null,48,{"$f":"'Suivi des notes'!C51&COUNTIF('Suivi des notes'!$C$4:C51,'Suivi des notes'!C51)","v":"0"}]
[null,49,{"$f":"'Suivi des notes'!C52&COUNTIF('Suivi des notes'!$C$4:C52,'Suivi des notes'!C52)","v":"0"}]
[null,50,{"$f":"'Suivi des notes'!C53&COUNTIF('Suivi des notes'!$C$4:C53,'Suivi des notes'!C53)","v":"0"}]
[null,51,{"$f":"'Suivi des notes'!C54&COUNTIF('Suivi des notes'!$C$4:C54,'Suivi des notes'!C54)","v":"0"}]
[null,52,{"$f":"'Suivi des notes'!C55&COUNTIF('Suivi des notes'!$C$4:C55,'Suivi des notes'!C55)","v":"0"}]
[null,53,{"$f":"'Suivi des notes'!C56&COUNTIF('Suivi des notes'!$C$4:C56,'Suivi des notes'!C56)","v":"0"}]
[null,54,{"$f":"'Suivi des notes'!C57&COUNTIF('Suivi des notes'!$C$4:C57,'Suivi des notes'!C57)","v":"0"}]
[null,55,{"$f":"'Suivi des notes'!C58&COUNTIF('Suivi des notes'!$C$4:C58,'Suivi des notes'!C58)","v":"0"}]
[null,56,{"$f":"'Suivi des notes'!C59&COUNTIF('Suivi des notes'!$C$4:C59,'Suivi des notes'!C59)","v":"0"}]
[null,57,{"$f":"'Suivi des notes'!C60&COUNTIF('Suivi des notes'!$C$4:C60,'Suivi des notes'!C60)","v":"0"}]
[null,58,{"$f":"'Suivi des notes'!C61&COUNTIF('Suivi des notes'!$C$4:C61,'Suivi des notes'!C61)","v":"0"}]
[null,59,{"$f":"'Suivi des notes'!C62&COUNTIF('Suivi des notes'!$C$4:C62,'Suivi des notes'!C62)","v":"0"}]
[null,60,{"$f":"'Suivi des notes'!C63&COUNTIF('Suivi des notes'!$C$4:C63,'Suivi des notes'!C63)","v":"0"}]
[null,61,{"$f":"'Suivi des notes'!C64&COUNTIF('Suivi des notes'!$C$4:C64,'Suivi des notes'!C64)","v":"0"}]
[null,62,{"$f":"'Suivi des notes'!C65&COUNTIF('Suivi des notes'!$C$4:C65,'Suivi des notes'!C65)","v":"0"}]
[null,63,{"$f":"'Suivi des notes'!C66&COUNTIF('Suivi des notes'!$C$4:C66,'Suivi des notes'!C66)","v":"0"}]
[null,64,{"$f":"'Suivi des notes'!C67&COUNTIF('Suivi des notes'!$C$4:C67,'Suivi des notes'!C67)","v":"0"}]
[null,65,{"$f":"'Suivi des notes'!C68&COUNTIF('Suivi des notes'!$C$4:C68,'Suivi des notes'!C68)","v":"0"}]
[null,66,{"$f":"'Suivi des notes'!C69&COUNTIF('Suivi des notes'!$C$4:C69,'Suivi des notes'!C69)","v":"0"}]
[null,67,{"$f":"'Suivi des notes'!C70&COUNTIF('Suivi des notes'!$C$4:C70,'Suivi des notes'!C70)","v":"0"}]
[null,68,{"$f":"'Suivi des notes'!C71&COUNTIF('Suivi des notes'!$C$4:C71,'Suivi des notes'!C71)","v":"0"}]
[null,69,{"$f":"'Suivi des notes'!C72&COUNTIF('Suivi des notes'!$C$4:C72,'Suivi des notes'!C72)","v":"0"}]
[null,70,{"$f":"'Suivi des notes'!C73&COUNTIF('Suivi des notes'!$C$4:C73,'Suivi des notes'!C73)","v":"0"}]
[null,71,{"$f":"'Suivi des notes'!C74&COUNTIF('Suivi des notes'!$C$4:C74,'Suivi des notes'!C74)","v":"0"}]
[null,72,{"$f":"'Suivi des notes'!C75&COUNTIF('Suivi des notes'!$C$4:C75,'Suivi des notes'!C75)","v":"0"}]
[null,73,{"$f":"'Suivi des notes'!C76&COUNTIF('Suivi des notes'!$C$4:C76,'Suivi des notes'!C76)","v":"0"}]
[null,74,{"$f":"'Suivi des notes'!C77&COUNTIF('Suivi des notes'!$C$4:C77,'Suivi des notes'!C77)","v":"0"}]
[null,75,{"$f":"'Suivi des notes'!C78&COUNTIF('Suivi des notes'!$C$4:C78,'Suivi des notes'!C78)","v":"0"}]
[null,76,{"$f":"'Suivi des notes'!C79&COUNTIF('Suivi des notes'!$C$4:C79,'Suivi des notes'!C79)","v":"0"}]
[null,77,{"$f":"'Suivi des notes'!C80&COUNTIF('Suivi des notes'!$C$4:C80,'Suivi des notes'!C80)","v":"0"}]
[null,78,{"$f":"'Suivi des notes'!C81&COUNTIF('Suivi des notes'!$C$4:C81,'Suivi des notes'!C81)","v":"0"}]
[null,79,{"$f":"'Suivi des notes'!C82&COUNTIF('Suivi des notes'!$C$4:C82,'Suivi des notes'!C82)","v":"0"}]
[null,80,{"$f":"'Suivi des notes'!C83&COUNTIF('Suivi des notes'!$C$4:C83,'Suivi des notes'!C83)","v":"0"}]
[null,81,{"$f":"'Suivi des notes'!C84&COUNTIF('Suivi des notes'!$C$4:C84,'Suivi des notes'!C84)","v":"0"}]
[null,82,{"$f":"'Suivi des notes'!C85&COUNTIF('Suivi des notes'!$C$4:C85,'Suivi des notes'!C85)","v":"0"}]
[null,83,{"$f":"'Suivi des notes'!C86&COUNTIF('Suivi des notes'!$C$4:C86,'Suivi des notes'!C86)","v":"0"}]
[null,84,{"$f":"'Suivi des notes'!C87&COUNTIF('Suivi des notes'!$C$4:C87,'Suivi des notes'!C87)","v":"0"}]
[null,85,{"$f":"'Suivi des notes'!C88&COUNTIF('Suivi des notes'!$C$4:C88,'Suivi des notes'!C88)","v":"0"}]
[null,86,{"$f":"'Suivi des notes'!C89&COUNTIF('Suivi des notes'!$C$4:C89,'Suivi des notes'!C89)","v":"0"}]
[null,87,{"$f":"'Suivi des notes'!C90&COUNTIF('Suivi des notes'!$C$4:C90,'Suivi des notes'!C90)","v":"0"}]
[null,88,{"$f":"'Suivi des notes'!C91&COUNTIF('Suivi des notes'!$C$4:C91,'Suivi des notes'!C91)","v":"0"}]
[null,89,{"$f":"'Suivi des notes'!C92&COUNTIF('Suivi des notes'!$C$4:C92,'Suivi des notes'!C92)","v":"0"}]
[null,90,{"$f":"'Suivi des notes'!C93&COUNTIF('Suivi des notes'!$C$4:C93,'Suivi des notes'!C93)","v":"0"}]
[null,91,{"$f":"'Suivi des notes'!C94&COUNTIF('Suivi des notes'!$C$4:C94,'Suivi des notes'!C94)","v":"0"}]
[null,92,{"$f":"'Suivi des notes'!C95&COUNTIF('Suivi des notes'!$C$4:C95,'Suivi des notes'!C95)","v":"0"}]
[null,93,{"$f":"'Suivi des notes'!C96&COUNTIF('Suivi des notes'!$C$4:C96,'Suivi des notes'!C96)","v":"0"}]
[null,94,{"$f":"'Suivi des notes'!C97&COUNTIF('Suivi des notes'!$C$4:C97,'Suivi des notes'!C97)","v":"0"}]
[null,95,{"$f":"'Suivi des notes'!C98&COUNTIF('Suivi des notes'!$C$4:C98,'Suivi des notes'!C98)","v":"0"}]
[null,96,{"$f":"'Suivi des notes'!C99&COUNTIF('Suivi des notes'!$C$4:C99,'Suivi des notes'!C99)","v":"0"}]
[null,97,{"$f":"'Suivi des notes'!C100&COUNTIF('Suivi des notes'!$C$4:C100,'Suivi des notes'!C100)","v":"0"}]
[null,98,{"$f":"'Suivi des notes'!C101&COUNTIF('Suivi des notes'!$C$4:C101,'Suivi des notes'!C101)","v":"0"}]
[null,99,{"$f":"'Suivi des notes'!C102&COUNTIF('Suivi des notes'!$C$4:C102,'Suivi des notes'!C102)","v":"0"}]
[null,100,{"$f":"'Suivi des notes'!C103&COUNTIF('Suivi des notes'!$C$4:C103,'Suivi des notes'!C103)","v":"0"}]
[null,101,{"$f":"'Suivi des notes'!C104&COUNTIF('Suivi des notes'!$C$4:C104,'Suivi des notes'!C104)","v":"0"}]
[null,102,{"$f":"'Suivi des notes'!C105&COUNTIF('Suivi des notes'!$C$4:C105,'Suivi des notes'!C105)","v":"0"}]
[null,103,{"$f":"'Suivi des notes'!C106&COUNTIF('Suivi des notes'!$C$4:C106,'Suivi des notes'!C106)","v":"0"}]
[null,104,{"$f":"'Suivi des notes'!C107&COUNTIF('Suivi des notes'!$C$4:C107,'Suivi des notes'!C107)","v":"0"}]
[null,105,{"$f":"'Suivi des notes'!C108&COUNTIF('Suivi des notes'!$C$4:C108,'Suivi des notes'!C108)","v":"0"}]
[null,106,{"$f":"'Suivi des notes'!C109&COUNTIF('Suivi des notes'!$C$4:C109,'Suivi des notes'!C109)","v":"0"}]
[null,107,{"$f":"'Suivi des notes'!C110&COUNTIF('Suivi des notes'!$C$4:C110,'Suivi des notes'!C110)","v":"0"}]
[null,108,{"$f":"'Suivi des notes'!C111&COUNTIF('Suivi des notes'!$C$4:C111,'Suivi des notes'!C111)","v":"0"}]
[null,109,{"$f":"'Suivi des notes'!C112&COUNTIF('Suivi des notes'!$C$4:C112,'Suivi des notes'!C112)","v":"0"}]
[null,110,{"$f":"'Suivi des notes'!C113&COUNTIF('Suivi des notes'!$C$4:C113,'Suivi des notes'!C113)","v":"0"}]
[null,111,{"$f":"'Suivi des notes'!C114&COUNTIF('Suivi des notes'!$C$4:C114,'Suivi des notes'!C114)","v":"0"}]
[null,112,{"$f":"'Suivi des notes'!C115&COUNTIF('Suivi des notes'!$C$4:C115,'Suivi des notes'!C115)","v":"0"}]
[null,113,{"$f":"'Suivi des notes'!C116&COUNTIF('Suivi des notes'!$C$4:C116,'Suivi des notes'!C116)","v":"0"}]
[null,114,{"$f":"'Suivi des notes'!C117&COUNTIF('Suivi des notes'!$C$4:C117,'Suivi des notes'!C117)","v":"0"}]
[null,115,{"$f":"'Suivi des notes'!C118&COUNTIF('Suivi des notes'!$C$4:C118,'Suivi des notes'!C118)","v":"0"}]
[null,116,{"$f":"'Suivi des notes'!C119&COUNTIF('Suivi des notes'!$C$4:C119,'Suivi des notes'!C119)","v":"0"}]
[null,117,{"$f":"'Suivi des notes'!C120&COUNTIF('Suivi des notes'!$C$4:C120,'Suivi des notes'!C120)","v":"0"}]
[null,118,{"$f":"'Suivi des notes'!C121&COUNTIF('Suivi des notes'!$C$4:C121,'Suivi des notes'!C121)","v":"0"}]
[null,119,{"$f":"'Suivi des notes'!C122&COUNTIF('Suivi des notes'!$C$4:C122,'Suivi des notes'!C122)","v":"0"}]
[null,120,{"$f":"'Suivi des notes'!C123&COUNTIF('Suivi des notes'!$C$4:C123,'Suivi des notes'!C123)","v":"0"}]
[null,121,{"$f":"'Suivi des notes'!C124&COUNTIF('Suivi des notes'!$C$4:C124,'Suivi des notes'!C124)","v":"0"}]
[null,122,{"$f":"'Suivi des notes'!C125&COUNTIF('Suivi des notes'!$C$4:C125,'Suivi des notes'!C125)","v":"0"}]
[null,123,{"$f":"'Suivi des notes'!C126&COUNTIF('Suivi des notes'!$C$4:C126,'Suivi des notes'!C126)","v":"0"}]
[null,124,{"$f":"'Suivi des notes'!C127&COUNTIF('Suivi des notes'!$C$4:C127,'Suivi des notes'!C127)","v":"0"}]
[null,125,{"$f":"'Suivi des notes'!C128&COUNTIF('Suivi des notes'!$C$4:C128,'Suivi des notes'!C128)","v":"0"}]
[null,126,{"$f":"'Suivi des notes'!C129&COUNTIF('Suivi des notes'!$C$4:C129,'Suivi des notes'!C129)","v":"0"}]
[null,127,{"$f":"'Suivi des notes'!C130&COUNTIF('Suivi des notes'!$C$4:C130,'Suivi des notes'!C130)","v":"0"}]
[null,128,{"$f":"'Suivi des notes'!C131&COUNTIF('Suivi des notes'!$C$4:C131,'Suivi des notes'!C131)","v":"0"}]
[null,129,{"$f":"'Suivi des notes'!C132&COUNTIF('Suivi des notes'!$C$4:C132,'Suivi des notes'!C132)","v":"0"}]
[null,130,{"$f":"'Suivi des notes'!C133&COUNTIF('Suivi des notes'!$C$4:C133,'Suivi des notes'!C133)","v":"0"}]
[null,131,{"$f":"'Suivi des notes'!C134&COUNTIF('Suivi des notes'!$C$4:C134,'Suivi des notes'!C134)","v":"0"}]
[null,132,{"$f":"'Suivi des notes'!C135&COUNTIF('Suivi des notes'!$C$4:C135,'Suivi des notes'!C135)","v":"0"}]
[null,133,{"$f":"'Suivi des notes'!C136&COUNTIF('Suivi des notes'!$C$4:C136,'Suivi des notes'!C136)","v":"0"}]
[null,134,{"$f":"'Suivi des notes'!C137&COUNTIF('Suivi des notes'!$C$4:C137,'Suivi des notes'!C137)","v":"0"}]
[null,135,{"$f":"'Suivi des notes'!C138&COUNTIF('Suivi des notes'!$C$4:C138,'Suivi des notes'!C138)","v":"0"}]
[null,136,{"$f":"'Suivi des notes'!C139&COUNTIF('Suivi des notes'!$C$4:C139,'Suivi des notes'!C139)","v":"0"}]
[null,137,{"$f":"'Suivi des notes'!C140&COUNTIF('Suivi des notes'!$C$4:C140,'Suivi des notes'!C140)","v":"0"}]
[null,138,{"$f":"'Suivi des notes'!C141&COUNTIF('Suivi des notes'!$C$4:C141,'Suivi des notes'!C141)","v":"0"}]
[null,139,{"$f":"'Suivi des notes'!C142&COUNTIF('Suivi des notes'!$C$4:C142,'Suivi des notes'!C142)","v":"0"}]
[null,140,{"$f":"'Suivi des notes'!C143&COUNTIF('Suivi des notes'!$C$4:C143,'Suivi des notes'!C143)","v":"0"}]
[null,141,{"$f":"'Suivi des notes'!C144&COUNTIF('Suivi des notes'!$C$4:C144,'Suivi des notes'!C144)","v":"0"}]
[null,142,{"$f":"'Suivi des notes'!C145&COUNTIF('Suivi des notes'!$C$4:C145,'Suivi des notes'!C145)","v":"0"}]
[null,143,{"$f":"'Suivi des notes'!C146&COUNTIF('Suivi des notes'!$C$4:C146,'Suivi des notes'!C146)","v":"0"}]
[null,144,{"$f":"'Suivi des notes'!C147&COUNTIF('Suivi des notes'!$C$4:C147,'Suivi des notes'!C147)","v":"0"}]
[null,145,{"$f":"'Suivi des notes'!C148&COUNTIF('Suivi des notes'!$C$4:C148,'Suivi des notes'!C148)","v":"0"}]
[null,146,{"$f":"'Suivi des notes'!C149&COUNTIF('Suivi des notes'!$C$4:C149,'Suivi des notes'!C149)","v":"0"}]
[null,147,{"$f":"'Suivi des notes'!C150&COUNTIF('Suivi des notes'!$C$4:C150,'Suivi des notes'!C150)","v":"0"}]
[null,148,{"$f":"'Suivi des notes'!C151&COUNTIF('Suivi des notes'!$C$4:C151,'Suivi des notes'!C151)","v":"0"}]
[null,149,{"$f":"'Suivi des notes'!C152&COUNTIF('Suivi des notes'!$C$4:C152,'Suivi des notes'!C152)","v":"0"}]
[null,150,{"$f":"'Suivi des notes'!C153&COUNTIF('Suivi des notes'!$C$4:C153,'Suivi des notes'!C153)","v":"0"}]
[null,151,{"$f":"'Suivi des notes'!C154&COUNTIF('Suivi des notes'!$C$4:C154,'Suivi des notes'!C154)","v":"0"}]
[null,152,{"$f":"'Suivi des notes'!C155&COUNTIF('Suivi des notes'!$C$4:C155,'Suivi des notes'!C155)","v":"0"}]
[null,153,{"$f":"'Suivi des notes'!C156&COUNTIF('Suivi des notes'!$C$4:C156,'Suivi des notes'!C156)","v":"0"}]
[null,154,{"$f":"'Suivi des notes'!C157&COUNTIF('Suivi des notes'!$C$4:C157,'Suivi des notes'!C157)","v":"0"}]
[null,155,{"$f":"'Suivi des notes'!C158&COUNTIF('Suivi des notes'!$C$4:C158,'Suivi des notes'!C158)","v":"0"}]
[null,156,{"$f":"'Suivi des notes'!C159&COUNTIF('Suivi des notes'!$C$4:C159,'Suivi des notes'!C159)","v":"0"}]
[null,157,{"$f":"'Suivi des notes'!C160&COUNTIF('Suivi des notes'!$C$4:C160,'Suivi des notes'!C160)","v":"0"}]
[null,158,{"$f":"'Suivi des notes'!C161&COUNTIF('Suivi des notes'!$C$4:C161,'Suivi des notes'!C161)","v":"0"}]
[null,159,{"$f":"'Suivi des notes'!C162&COUNTIF('Suivi des notes'!$C$4:C162,'Suivi des notes'!C162)","v":"0"}]
[null,160,{"$f":"'Suivi des notes'!C163&COUNTIF('Suivi des notes'!$C$4:C163,'Suivi des notes'!C163)","v":"0"}]
[null,161,{"$f":"'Suivi des notes'!C164&COUNTIF('Suivi des notes'!$C$4:C164,'Suivi des notes'!C164)","v":"0"}]
[null,162,{"$f":"'Suivi des notes'!C165&COUNTIF('Suivi des notes'!$C$4:C165,'Suivi des notes'!C165)","v":"0"}]
[null,163,{"$f":"'Suivi des notes'!C166&COUNTIF('Suivi des notes'!$C$4:C166,'Suivi des notes'!C166)","v":"0"}]
[null,164,{"$f":"'Suivi des notes'!C167&COUNTIF('Suivi des notes'!$C$4:C167,'Suivi des notes'!C167)","v":"0"}]
[null,165,{"$f":"'Suivi des notes'!C168&COUNTIF('Suivi des notes'!$C$4:C168,'Suivi des notes'!C168)","v":"0"}]
[null,166,{"$f":"'Suivi des notes'!C169&COUNTIF('Suivi des notes'!$C$4:C169,'Suivi des notes'!C169)","v":"0"}]
[null,167,{"$f":"'Suivi des notes'!C170&COUNTIF('Suivi des notes'!$C$4:C170,'Suivi des notes'!C170)","v":"0"}]
[null,168,{"$f":"'Suivi des notes'!C171&COUNTIF('Suivi des notes'!$C$4:C171,'Suivi des notes'!C171)","v":"0"}]
[null,169,{"$f":"'Suivi des notes'!C172&COUNTIF('Suivi des notes'!$C$4:C172,'Suivi des notes'!C172)","v":"0"}]
[null,170,{"$f":"'Suivi des notes'!C173&COUNTIF('Suivi des notes'!$C$4:C173,'Suivi des notes'!C173)","v":"0"}]
[null,171,{"$f":"'Suivi des notes'!C174&COUNTIF('Suivi des notes'!$C$4:C174,'Suivi des notes'!C174)","v":"0"}]
[null,172,{"$f":"'Suivi des notes'!C175&COUNTIF('Suivi des notes'!$C$4:C175,'Suivi des notes'!C175)","v":"0"}]
[null,173,{"$f":"'Suivi des notes'!C176&COUNTIF('Suivi des notes'!$C$4:C176,'Suivi des notes'!C176)","v":"0"}]
[null,174,{"$f":"'Suivi des notes'!C177&COUNTIF('Suivi des notes'!$C$4:C177,'Suivi des notes'!C177)","v":"0"}]
[null,175,{"$f":"'Suivi des notes'!C178&COUNTIF('Suivi des notes'!$C$4:C178,'Suivi des notes'!C178)","v":"0"}]
[null,176,{"$f":"'Suivi des notes'!C179&COUNTIF('Suivi des notes'!$C$4:C179,'Suivi des notes'!C179)","v":"0"}]
[null,177,{"$f":"'Suivi des notes'!C180&COUNTIF('Suivi des notes'!$C$4:C180,'Suivi des notes'!C180)","v":"0"}]
[null,178,{"$f":"'Suivi des notes'!C181&COUNTIF('Suivi des notes'!$C$4:C181,'Suivi des notes'!C181)","v":"0"}]
[null,179,{"$f":"'Suivi des notes'!C182&COUNTIF('Suivi des notes'!$C$4:C182,'Suivi des notes'!C182)","v":"0"}]
[null,180,{"$f":"'Suivi des notes'!C183&COUNTIF('Suivi des notes'!$C$4:C183,'Suivi des notes'!C183)","v":"0"}]
[null,181,{"$f":"'Suivi des notes'!C184&COUNTIF('Suivi des notes'!$C$4:C184,'Suivi des notes'!C184)","v":"0"}]
[null,182,{"$f":"'Suivi des notes'!C185&COUNTIF('Suivi des notes'!$C$4:C185,'Suivi des notes'!C185)","v":"0"}]
[null,183,{"$f":"'Suivi des notes'!C186&COUNTIF('Suivi des notes'!$C$4:C186,'Suivi des notes'!C186)","v":"0"}]
[null,184,{"$f":"'Suivi des notes'!C187&COUNTIF('Suivi des notes'!$C$4:C187,'Suivi des notes'!C187)","v":"0"}]
[null,185,{"$f":"'Suivi des notes'!C188&COUNTIF('Suivi des notes'!$C$4:C188,'Suivi des notes'!C188)","v":"0"}]
[null,186,{"$f":"'Suivi des notes'!C189&COUNTIF('Suivi des notes'!$C$4:C189,'Suivi des notes'!C189)","v":"0"}]
[null,187,{"$f":"'Suivi des notes'!C190&COUNTIF('Suivi des notes'!$C$4:C190,'Suivi des notes'!C190)","v":"0"}]
[null,188,{"$f":"'Suivi des notes'!C191&COUNTIF('Suivi des notes'!$C$4:C191,'Suivi des notes'!C191)","v":"0"}]
[null,189,{"$f":"'Suivi des notes'!C192&COUNTIF('Suivi des notes'!$C$4:C192,'Suivi des notes'!C192)","v":"0"}]
[null,190,{"$f":"'Suivi des notes'!C193&COUNTIF('Suivi des notes'!$C$4:C193,'Suivi des notes'!C193)","v":"0"}]
[null,191,{"$f":"'Suivi des notes'!C194&COUNTIF('Suivi des notes'!$C$4:C194,'Suivi des notes'!C194)","v":"0"}]
[null,192,{"$f":"'Suivi des notes'!C195&COUNTIF('Suivi des notes'!$C$4:C195,'Suivi des notes'!C195)","v":"0"}]
[null,193,{"$f":"'Suivi des notes'!C196&COUNTIF('Suivi des notes'!$C$4:C196,'Suivi des notes'!C196)","v":"0"}]
[null,194,{"$f":"'Suivi des notes'!C197&COUNTIF('Suivi des notes'!$C$4:C197,'Suivi des notes'!C197)","v":"0"}]
[null,195,{"$f":"'Suivi des notes'!C198&COUNTIF('Suivi des notes'!$C$4:C198,'Suivi des notes'!C198)","v":"0"}]
[null,196,{"$f":"'Suivi des notes'!C199&COUNTIF('Suivi des notes'!$C$4:C199,'Suivi des notes'!C199)","v":"0"}]
[null,197,{"$f":"'Suivi des notes'!C200&COUNTIF('Suivi des notes'!$C$4:C200,'Suivi des notes'!C200)","v":"0"}]
[null,198,{"$f":"'Suivi des notes'!C201&COUNTIF('Suivi des notes'!$C$4:C201,'Suivi des notes'!C201)","v":"0"}]
[null,199,{"$f":"'Suivi des notes'!C202&COUNTIF('Suivi des notes'!$C$4:C202,'Suivi des notes'!C202)","v":"0"}]
[null,200,{"$f":"'Suivi des notes'!C203&COUNTIF('Suivi des notes'!$C$4:C203,'Suivi des notes'!C203)","v":"0"}]
[null,201,{"$f":"'Suivi des notes'!C204&COUNTIF('Suivi des notes'!$C$4:C204,'Suivi des notes'!C204)","v":"0"}]
[null,202,{"$f":"'Suivi des notes'!C205&COUNTIF('Suivi des notes'!$C$4:C205,'Suivi des notes'!C205)","v":"0"}]
[null,203,{"$f":"'Suivi des notes'!C206&COUNTIF('Suivi des notes'!$C$4:C206,'Suivi des notes'!C206)","v":"0"}]
[null,204,{"$f":"'Suivi des notes'!C207&COUNTIF('Suivi des notes'!$C$4:C207,'Suivi des notes'!C207)","v":"0"}]
[null,205,{"$f":"'Suivi des notes'!C208&COUNTIF('Suivi des notes'!$C$4:C208,'Suivi des notes'!C208)","v":"0"}]
[null,206,{"$f":"'Suivi des notes'!C209&COUNTIF('Suivi des notes'!$C$4:C209,'Suivi des notes'!C209)","v":"0"}]
[null,207,{"$f":"'Suivi des notes'!C210&COUNTIF('Suivi des notes'!$C$4:C210,'Suivi des notes'!C210)","v":"0"}]
[null,208,{"$f":"'Suivi des notes'!C211&COUNTIF('Suivi des notes'!$C$4:C211,'Suivi des notes'!C211)","v":"0"}]
[null,209,{"$f":"'Suivi des notes'!C212&COUNTIF('Suivi des notes'!$C$4:C212,'Suivi des notes'!C212)","v":"0"}]
[null,210,{"$f":"'Suivi des notes'!C213&COUNTIF('Suivi des notes'!$C$4:C213,'Suivi des notes'!C213)","v":"0"}]
[null,211,{"$f":"'Suivi des notes'!C214&COUNTIF('Suivi des notes'!$C$4:C214,'Suivi des notes'!C214)","v":"0"}]
[null,212,{"$f":"'Suivi des notes'!C215&COUNTIF('Suivi des notes'!$C$4:C215,'Suivi des notes'!C215)","v":"0"}]
[null,213,{"$f":"'Suivi des notes'!C216&COUNTIF('Suivi des notes'!$C$4:C216,'Suivi des notes'!C216)","v":"0"}]
[null,214,{"$f":"'Suivi des notes'!C217&COUNTIF('Suivi des notes'!$C$4:C217,'Suivi des notes'!C217)","v":"0"}]
[null,215,{"$f":"'Suivi des notes'!C218&COUNTIF('Suivi des notes'!$C$4:C218,'Suivi des notes'!C218)","v":"0"}]
[null,216,{"$f":"'Suivi des notes'!C219&COUNTIF('Suivi des notes'!$C$4:C219,'Suivi des notes'!C219)","v":"0"}]
[null,217,{"$f":"'Suivi des notes'!C220&COUNTIF('Suivi des notes'!$C$4:C220,'Suivi des notes'!C220)","v":"0"}]
[null,218,{"$f":"'Suivi des notes'!C221&COUNTIF('Suivi des notes'!$C$4:C221,'Suivi des notes'!C221)","v":"0"}]
[null,219,{"$f":"'Suivi des notes'!C222&COUNTIF('Suivi des notes'!$C$4:C222,'Suivi des notes'!C222)","v":"0"}]
[null,220,{"$f":"'Suivi des notes'!C223&COUNTIF('Suivi des notes'!$C$4:C223,'Suivi des notes'!C223)","v":"0"}]
[null,221,{"$f":"'Suivi des notes'!C224&COUNTIF('Suivi des notes'!$C$4:C224,'Suivi des notes'!C224)","v":"0"}]
[null,222,{"$f":"'Suivi des notes'!C225&COUNTIF('Suivi des notes'!$C$4:C225,'Suivi des notes'!C225)","v":"0"}]
[null,223,{"$f":"'Suivi des notes'!C226&COUNTIF('Suivi des notes'!$C$4:C226,'Suivi des notes'!C226)","v":"0"}]
[null,224,{"$f":"'Suivi des notes'!C227&COUNTIF('Suivi des notes'!$C$4:C227,'Suivi des notes'!C227)","v":"0"}]
[null,225,{"$f":"'Suivi des notes'!C228&COUNTIF('Suivi des notes'!$C$4:C228,'Suivi des notes'!C228)","v":"0"}]
[null,226,{"$f":"'Suivi des notes'!C229&COUNTIF('Suivi des notes'!$C$4:C229,'Suivi des notes'!C229)","v":"0"}]
[null,227,{"$f":"'Suivi des notes'!C230&COUNTIF('Suivi des notes'!$C$4:C230,'Suivi des notes'!C230)","v":"0"}]
[null,228,{"$f":"'Suivi des notes'!C231&COUNTIF('Suivi des notes'!$C$4:C231,'Suivi des notes'!C231)","v":"0"}]
[null,229,{"$f":"'Suivi des notes'!C232&COUNTIF('Suivi des notes'!$C$4:C232,'Suivi des notes'!C232)","v":"0"}]
[null,230,{"$f":"'Suivi des notes'!C233&COUNTIF('Suivi des notes'!$C$4:C233,'Suivi des notes'!C233)","v":"0"}]
[null,231,{"$f":"'Suivi des notes'!C234&COUNTIF('Suivi des notes'!$C$4:C234,'Suivi des notes'!C234)","v":"0"}]
[null,232,{"$f":"'Suivi des notes'!C235&COUNTIF('Suivi des notes'!$C$4:C235,'Suivi des notes'!C235)","v":"0"}]
[null,233,{"$f":"'Suivi des notes'!C236&COUNTIF('Suivi des notes'!$C$4:C236,'Suivi des notes'!C236)","v":"0"}]
[null,234,{"$f":"'Suivi des notes'!C237&COUNTIF('Suivi des notes'!$C$4:C237,'Suivi des notes'!C237)","v":"0"}]
[null,235,{"$f":"'Suivi des notes'!C238&COUNTIF('Suivi des notes'!$C$4:C238,'Suivi des notes'!C238)","v":"0"}]
[null,236,{"$f":"'Suivi des notes'!C239&COUNTIF('Suivi des notes'!$C$4:C239,'Suivi des notes'!C239)","v":"0"}]
[null,237,{"$f":"'Suivi des notes'!C240&COUNTIF('Suivi des notes'!$C$4:C240,'Suivi des notes'!C240)","v":"0"}]
[null,238,{"$f":"'Suivi des notes'!C241&COUNTIF('Suivi des notes'!$C$4:C241,'Suivi des notes'!C241)","v":"0"}]
[null,239,{"$f":"'Suivi des notes'!C242&COUNTIF('Suivi des notes'!$C$4:C242,'Suivi des notes'!C242)","v":"0"}]
[null,240,{"$f":"'Suivi des notes'!C243&COUNTIF('Suivi des notes'!$C$4:C243,'Suivi des notes'!C243)","v":"0"}]
[null,241,{"$f":"'Suivi des notes'!C244&COUNTIF('Suivi des notes'!$C$4:C244,'Suivi des notes'!C244)","v":"0"}]
[null,242,{"$f":"'Suivi des notes'!C245&COUNTIF('Suivi des notes'!$C$4:C245,'Suivi des notes'!C245)","v":"0"}]
[null,243,{"$f":"'Suivi des notes'!C246&COUNTIF('Suivi des notes'!$C$4:C246,'Suivi des notes'!C246)","v":"0"}]
[null,244,{"$f":"'Suivi des notes'!C247&COUNTIF('Suivi des notes'!$C$4:C247,'Suivi des notes'!C247)","v":"0"}]
[null,245,{"$f":"'Suivi des notes'!C248&COUNTIF('Suivi des notes'!$C$4:C248,'Suivi des notes'!C248)","v":"0"}]
[null,246,{"$f":"'Suivi des notes'!C249&COUNTIF('Suivi des notes'!$C$4:C249,'Suivi des notes'!C249)","v":"0"}]
[null,247,{"$f":"'Suivi des notes'!C250&COUNTIF('Suivi des notes'!$C$4:C250,'Suivi des notes'!C250)","v":"0"}]
[null,248,{"$f":"'Suivi des notes'!C251&COUNTIF('Suivi des notes'!$C$4:C251,'Suivi des notes'!C251)","v":"0"}]
[null,249,{"$f":"'Suivi des notes'!C252&COUNTIF('Suivi des notes'!$C$4:C252,'Suivi des notes'!C252)","v":"0"}]
[null,250,{"$f":"'Suivi des notes'!C253&COUNTIF('Suivi des notes'!$C$4:C253,'Suivi des notes'!C253)","v":"0"}]
[null,251,{"$f":"'Suivi des notes'!C254&COUNTIF('Suivi des notes'!$C$4:C254,'Suivi des notes'!C254)","v":"0"}]
[null,252,{"$f":"'Suivi des notes'!C255&COUNTIF('Suivi des notes'!$C$4:C255,'Suivi des notes'!C255)","v":"0"}]
[null,253,{"$f":"'Suivi des notes'!C256&COUNTIF('Suivi des notes'!$C$4:C256,'Suivi des notes'!C256)","v":"0"}]
[null,254,{"$f":"'Suivi des notes'!C257&COUNTIF('Suivi des notes'!$C$4:C257,'Suivi des notes'!C257)","v":"0"}]
[null,255,{"$f":"'Suivi des notes'!C258&COUNTIF('Suivi des notes'!$C$4:C258,'Suivi des notes'!C258)","v":"0"}]
[null,256,{"$f":"'Suivi des notes'!C259&COUNTIF('Suivi des notes'!$C$4:C259,'Suivi des notes'!C259)","v":"0"}]
[null,257,{"$f":"'Suivi des notes'!C260&COUNTIF('Suivi des notes'!$C$4:C260,'Suivi des notes'!C260)","v":"0"}]
[null,258,{"$f":"'Suivi des notes'!C261&COUNTIF('Suivi des notes'!$C$4:C261,'Suivi des notes'!C261)","v":"0"}]
[null,259,{"$f":"'Suivi des notes'!C262&COUNTIF('Suivi des notes'!$C$4:C262,'Suivi des notes'!C262)","v":"0"}]
[null,260,{"$f":"'Suivi des notes'!C263&COUNTIF('Suivi des notes'!$C$4:C263,'Suivi des notes'!C263)","v":"0"}]
[null,261,{"$f":"'Suivi des notes'!C264&COUNTIF('Suivi des notes'!$C$4:C264,'Suivi des notes'!C264)","v":"0"}]
[null,262,{"$f":"'Suivi des notes'!C265&COUNTIF('Suivi des notes'!$C$4:C265,'Suivi des notes'!C265)","v":"0"}]
[null,263,{"$f":"'Suivi des notes'!C266&COUNTIF('Suivi des notes'!$C$4:C266,'Suivi des notes'!C266)","v":"0"}]
[null,264,{"$f":"'Suivi des notes'!C267&COUNTIF('Suivi des notes'!$C$4:C267,'Suivi des notes'!C267)","v":"0"}]
[null,265,{"$f":"'Suivi des notes'!C268&COUNTIF('Suivi des notes'!$C$4:C268,'Suivi des notes'!C268)","v":"0"}]
[null,266,{"$f":"'Suivi des notes'!C269&COUNTIF('Suivi des notes'!$C$4:C269,'Suivi des notes'!C269)","v":"0"}]
[null,267,{"$f":"'Suivi des notes'!C270&COUNTIF('Suivi des notes'!$C$4:C270,'Suivi des notes'!C270)","v":"0"}]
[null,268,{"$f":"'Suivi des notes'!C271&COUNTIF('Suivi des notes'!$C$4:C271,'Suivi des notes'!C271)","v":"0"}]
[null,269,{"$f":"'Suivi des notes'!C272&COUNTIF('Suivi des notes'!$C$4:C272,'Suivi des notes'!C272)","v":"0"}]
[null,270,{"$f":"'Suivi des notes'!C273&COUNTIF('Suivi des notes'!$C$4:C273,'Suivi des notes'!C273)","v":"0"}]
[null,271,{"$f":"'Suivi des notes'!C274&COUNTIF('Suivi des notes'!$C$4:C274,'Suivi des notes'!C274)","v":"0"}]
[null,272,{"$f":"'Suivi des notes'!C275&COUNTIF('Suivi des notes'!$C$4:C275,'Suivi des notes'!C275)","v":"0"}]
[null,273,{"$f":"'Suivi des notes'!C276&COUNTIF('Suivi des notes'!$C$4:C276,'Suivi des notes'!C276)","v":"0"}]
[null,274,{"$f":"'Suivi des notes'!C277&COUNTIF('Suivi des notes'!$C$4:C277,'Suivi des notes'!C277)","v":"0"}]
[null,275,{"$f":"'Suivi des notes'!C278&COUNTIF('Suivi des notes'!$C$4:C278,'Suivi des notes'!C278)","v":"0"}]
[null,276,{"$f":"'Suivi des notes'!C279&COUNTIF('Suivi des notes'!$C$4:C279,'Suivi des notes'!C279)","v":"0"}]
[null,277,{"$f":"'Suivi des notes'!C280&COUNTIF('Suivi des notes'!$C$4:C280,'Suivi des notes'!C280)","v":"0"}]
[null,278,{"$f":"'Suivi des notes'!C281&COUNTIF('Suivi des notes'!$C$4:C281,'Suivi des notes'!C281)","v":"0"}]
[null,279,{"$f":"'Suivi des notes'!C282&COUNTIF('Suivi des notes'!$C$4:C282,'Suivi des notes'!C282)","v":"0"}]
[null,280,{"$f":"'Suivi des notes'!C283&COUNTIF('Suivi des notes'!$C$4:C283,'Suivi des notes'!C283)","v":"0"}]
[null,281,{"$f":"'Suivi des notes'!C284&COUNTIF('Suivi des notes'!$C$4:C284,'Suivi des notes'!C284)","v":"0"}]
[null,282,{"$f":"'Suivi des notes'!C285&COUNTIF('Suivi des notes'!$C$4:C285,'Suivi des notes'!C285)","v":"0"}]
[null,283,{"$f":"'Suivi des notes'!C286&COUNTIF('Suivi des notes'!$C$4:C286,'Suivi des notes'!C286)","v":"0"}]
[null,284,{"$f":"'Suivi des notes'!C287&COUNTIF('Suivi des notes'!$C$4:C287,'Suivi des notes'!C287)","v":"0"}]
[null,285,{"$f":"'Suivi des notes'!C288&COUNTIF('Suivi des notes'!$C$4:C288,'Suivi des notes'!C288)","v":"0"}]
[null,286,{"$f":"'Suivi des notes'!C289&COUNTIF('Suivi des notes'!$C$4:C289,'Suivi des notes'!C289)","v":"0"}]
[null,287,{"$f":"'Suivi des notes'!C290&COUNTIF('Suivi des notes'!$C$4:C290,'Suivi des notes'!C290)","v":"0"}]
[null,288,{"$f":"'Suivi des notes'!C291&COUNTIF('Suivi des notes'!$C$4:C291,'Suivi des notes'!C291)","v":"0"}]
[null,289,{"$f":"'Suivi des notes'!C292&COUNTIF('Suivi des notes'!$C$4:C292,'Suivi des notes'!C292)","v":"0"}]
[null,290,{"$f":"'Suivi des notes'!C293&COUNTIF('Suivi des notes'!$C$4:C293,'Suivi des notes'!C293)","v":"0"}]
[null,291,{"$f":"'Suivi des notes'!C294&COUNTIF('Suivi des notes'!$C$4:C294,'Suivi des notes'!C294)","v":"0"}]
[null,292,{"$f":"'Suivi des notes'!C295&COUNTIF('Suivi des notes'!$C$4:C295,'Suivi des notes'!C295)","v":"0"}]
[null,293,{"$f":"'Suivi des notes'!C296&COUNTIF('Suivi des notes'!$C$4:C296,'Suivi des notes'!C296)","v":"0"}]
[null,294,{"$f":"'Suivi des notes'!C297&COUNTIF('Suivi des notes'!$C$4:C297,'Suivi des notes'!C297)","v":"0"}]
[null,295,{"$f":"'Suivi des notes'!C298&COUNTIF('Suivi des notes'!$C$4:C298,'Suivi des notes'!C298)","v":"0"}]
[null,296,{"$f":"'Suivi des notes'!C299&COUNTIF('Suivi des notes'!$C$4:C299,'Suivi des notes'!C299)","v":"0"}]
[null,297,{"$f":"'Suivi des notes'!C300&COUNTIF('Suivi des notes'!$C$4:C300,'Suivi des notes'!C300)","v":"0"}]
[null,298,{"$f":"'Suivi des notes'!C301&COUNTIF('Suivi des notes'!$C$4:C301,'Suivi des notes'!C301)","v":"0"}]
[null,299,{"$f":"'Suivi des notes'!C302&COUNTIF('Suivi des notes'!$C$4:C302,'Suivi des notes'!C302)","v":"0"}]
[null,300,{"$f":"'Suivi des notes'!C303&COUNTIF('Suivi des notes'!$C$4:C303,'Suivi des notes'!C303)","v":"0"}]
[null,301,{"$f":"'Suivi des notes'!C304&COUNTIF('Suivi des notes'!$C$4:C304,'Suivi des notes'!C304)","v":"0"}]
[null,302,{"$f":"'Suivi des notes'!C305&COUNTIF('Suivi des notes'!$C$4:C305,'Suivi des notes'!C305)","v":"0"}]
[null,303,{"$f":"'Suivi des notes'!C306&COUNTIF('Suivi des notes'!$C$4:C306,'Suivi des notes'!C306)","v":"0"}]
[null,304,{"$f":"'Suivi des notes'!C307&COUNTIF('Suivi des notes'!$C$4:C307,'Suivi des notes'!C307)","v":"0"}]
[null,305,{"$f":"'Suivi des notes'!C308&COUNTIF('Suivi des notes'!$C$4:C308,'Suivi des notes'!C308)","v":"0"}]
[null,306,{"$f":"'Suivi des notes'!C309&COUNTIF('Suivi des notes'!$C$4:C309,'Suivi des notes'!C309)","v":"0"}]
[null,307,{"$f":"'Suivi des notes'!C310&COUNTIF('Suivi des notes'!$C$4:C310,'Suivi des notes'!C310)","v":"0"}]
[null,308,{"$f":"'Suivi des notes'!C311&COUNTIF('Suivi des notes'!$C$4:C311,'Suivi des notes'!C311)","v":"0"}]
[null,309,{"$f":"'Suivi des notes'!C312&COUNTIF('Suivi des notes'!$C$4:C312,'Suivi des notes'!C312)","v":"0"}]
[null,310,{"$f":"'Suivi des notes'!C313&COUNTIF('Suivi des notes'!$C$4:C313,'Suivi des notes'!C313)","v":"0"}]
[null,311,{"$f":"'Suivi des notes'!C314&COUNTIF('Suivi des notes'!$C$4:C314,'Suivi des notes'!C314)","v":"0"}]
[null,312,{"$f":"'Suivi des notes'!C315&COUNTIF('Suivi des notes'!$C$4:C315,'Suivi des notes'!C315)","v":"0"}]
[null,313,{"$f":"'Suivi des notes'!C316&COUNTIF('Suivi des notes'!$C$4:C316,'Suivi des notes'!C316)","v":"0"}]
[null,314,{"$f":"'Suivi des notes'!C317&COUNTIF('Suivi des notes'!$C$4:C317,'Suivi des notes'!C317)","v":"0"}]
[null,315,{"$f":"'Suivi des notes'!C318&COUNTIF('Suivi des notes'!$C$4:C318,'Suivi des notes'!C318)","v":"0"}]
[null,316,{"$f":"'Suivi des notes'!C319&COUNTIF('Suivi des notes'!$C$4:C319,'Suivi des notes'!C319)","v":"0"}]
[null,317,{"$f":"'Suivi des notes'!C320&COUNTIF('Suivi des notes'!$C$4:C320,'Suivi des notes'!C320)","v":"0"}]
[null,318,{"$f":"'Suivi des notes'!C321&COUNTIF('Suivi des notes'!$C$4:C321,'Suivi des notes'!C321)","v":"0"}]
[null,319,{"$f":"'Suivi des notes'!C322&COUNTIF('Suivi des notes'!$C$4:C322,'Suivi des notes'!C322)","v":"0"}]
[null,320,{"$f":"'Suivi des notes'!C323&COUNTIF('Suivi des notes'!$C$4:C323,'Suivi des notes'!C323)","v":"0"}]
[null,321,{"$f":"'Suivi des notes'!C324&COUNTIF('Suivi des notes'!$C$4:C324,'Suivi des notes'!C324)","v":"0"}]
[null,322,{"$f":"'Suivi des notes'!C325&COUNTIF('Suivi des notes'!$C$4:C325,'Suivi des notes'!C325)","v":"0"}]
[null,323,{"$f":"'Suivi des notes'!C326&COUNTIF('Suivi des notes'!$C$4:C326,'Suivi des notes'!C326)","v":"0"}]
[null,324,{"$f":"'Suivi des notes'!C327&COUNTIF('Suivi des notes'!$C$4:C327,'Suivi des notes'!C327)","v":"0"}]
[null,325,{"$f":"'Suivi des notes'!C328&COUNTIF('Suivi des notes'!$C$4:C328,'Suivi des notes'!C328)","v":"0"}]
[null,326,{"$f":"'Suivi des notes'!C329&COUNTIF('Suivi des notes'!$C$4:C329,'Suivi des notes'!C329)","v":"0"}]
[null,327,{"$f":"'Suivi des notes'!C330&COUNTIF('Suivi des notes'!$C$4:C330,'Suivi des notes'!C330)","v":"0"}]
[null,328,{"$f":"'Suivi des notes'!C331&COUNTIF('Suivi des notes'!$C$4:C331,'Suivi des notes'!C331)","v":"0"}]
[null,329,{"$f":"'Suivi des notes'!C332&COUNTIF('Suivi des notes'!$C$4:C332,'Suivi des notes'!C332)","v":"0"}]
[null,330,{"$f":"'Suivi des notes'!C333&COUNTIF('Suivi des notes'!$C$4:C333,'Suivi des notes'!C333)","v":"0"}]
[null,331,{"$f":"'Suivi des notes'!C334&COUNTIF('Suivi des notes'!$C$4:C334,'Suivi des notes'!C334)","v":"0"}]
[null,332,{"$f":"'Suivi des notes'!C335&COUNTIF('Suivi des notes'!$C$4:C335,'Suivi des notes'!C335)","v":"0"}]
[null,333,{"$f":"'Suivi des notes'!C336&COUNTIF('Suivi des notes'!$C$4:C336,'Suivi des notes'!C336)","v":"0"}]
[null,334,{"$f":"'Suivi des notes'!C337&COUNTIF('Suivi des notes'!$C$4:C337,'Suivi des notes'!C337)","v":"0"}]
[null,335,{"$f":"'Suivi des notes'!C338&COUNTIF('Suivi des notes'!$C$4:C338,'Suivi des notes'!C338)","v":"0"}]
[null,336,{"$f":"'Suivi des notes'!C339&COUNTIF('Suivi des notes'!$C$4:C339,'Suivi des notes'!C339)","v":"0"}]
[null,337,{"$f":"'Suivi des notes'!C340&COUNTIF('Suivi des notes'!$C$4:C340,'Suivi des notes'!C340)","v":"0"}]
[null,338,{"$f":"'Suivi des notes'!C341&COUNTIF('Suivi des notes'!$C$4:C341,'Suivi des notes'!C341)","v":"0"}]
[null,339,{"$f":"'Suivi des notes'!C342&COUNTIF('Suivi des notes'!$C$4:C342,'Suivi des notes'!C342)","v":"0"}]
[null,340,{"$f":"'Suivi des notes'!C343&COUNTIF('Suivi des notes'!$C$4:C343,'Suivi des notes'!C343)","v":"0"}]
[null,341,{"$f":"'Suivi des notes'!C344&COUNTIF('Suivi des notes'!$C$4:C344,'Suivi des notes'!C344)","v":"0"}]
[null,342,{"$f":"'Suivi des notes'!C345&COUNTIF('Suivi des notes'!$C$4:C345,'Suivi des notes'!C345)","v":"0"}]
[null,343,{"$f":"'Suivi des notes'!C346&COUNTIF('Suivi des notes'!$C$4:C346,'Suivi des notes'!C346)","v":"0"}]
[null,344,{"$f":"'Suivi des notes'!C347&COUNTIF('Suivi des notes'!$C$4:C347,'Suivi des notes'!C347)","v":"0"}]
[null,345,{"$f":"'Suivi des notes'!C348&COUNTIF('Suivi des notes'!$C$4:C348,'Suivi des notes'!C348)","v":"0"}]
[null,346,{"$f":"'Suivi des notes'!C349&COUNTIF('Suivi des notes'!$C$4:C349,'Suivi des notes'!C349)","v":"0"}]
[null,347,{"$f":"'Suivi des notes'!C350&COUNTIF('Suivi des notes'!$C$4:C350,'Suivi des notes'!C350)","v":"0"}]
[null,348,{"$f":"'Suivi des notes'!C351&COUNTIF('Suivi des notes'!$C$4:C351,'Suivi des notes'!C351)","v":"0"}]
[null,349,{"$f":"'Suivi des notes'!C352&COUNTIF('Suivi des notes'!$C$4:C352,'Suivi des notes'!C352)","v":"0"}]
[null,350,{"$f":"'Suivi des notes'!C353&COUNTIF('Suivi des notes'!$C$4:C353,'Suivi des notes'!C353)","v":"0"}]
[null,351,{"$f":"'Suivi des notes'!C354&COUNTIF('Suivi des notes'!$C$4:C354,'Suivi des notes'!C354)","v":"0"}]
[null,352,{"$f":"'Suivi des notes'!C355&COUNTIF('Suivi des notes'!$C$4:C355,'Suivi des notes'!C355)","v":"0"}]
[null,353,{"$f":"'Suivi des notes'!C356&COUNTIF('Suivi des notes'!$C$4:C356,'Suivi des notes'!C356)","v":"0"}]
[null,354,{"$f":"'Suivi des notes'!C357&COUNTIF('Suivi des notes'!$C$4:C357,'Suivi des notes'!C357)","v":"0"}]
[null,355,{"$f":"'Suivi des notes'!C358&COUNTIF('Suivi des notes'!$C$4:C358,'Suivi des notes'!C358)","v":"0"}]
[null,356,{"$f":"'Suivi des notes'!C359&COUNTIF('Suivi des notes'!$C$4:C359,'Suivi des notes'!C359)","v":"0"}]
[null,357,{"$f":"'Suivi des notes'!C360&COUNTIF('Suivi des notes'!$C$4:C360,'Suivi des notes'!C360)","v":"0"}]
[null,358,{"$f":"'Suivi des notes'!C361&COUNTIF('Suivi des notes'!$C$4:C361,'Suivi des notes'!C361)","v":"0"}]
[null,359,{"$f":"'Suivi des notes'!C362&COUNTIF('Suivi des notes'!$C$4:C362,'Suivi des notes'!C362)","v":"0"}]
[null,360,{"$f":"'Suivi des notes'!C363&COUNTIF('Suivi des notes'!$C$4:C363,'Suivi des notes'!C363)","v":"0"}]
[null,361,{"$f":"'Suivi des notes'!C364&COUNTIF('Suivi des notes'!$C$4:C364,'Suivi des notes'!C364)","v":"0"}]
[null,362,{"$f":"'Suivi des notes'!C365&COUNTIF('Suivi des notes'!$C$4:C365,'Suivi des notes'!C365)","v":"0"}]
[null,363,{"$f":"'Suivi des notes'!C366&COUNTIF('Suivi des notes'!$C$4:C366,'Suivi des notes'!C366)","v":"0"}]
[null,364,{"$f":"'Suivi des notes'!C367&COUNTIF('Suivi des notes'!$C$4:C367,'Suivi des notes'!C367)","v":"0"}]
[null,365,{"$f":"'Suivi des notes'!C368&COUNTIF('Suivi des notes'!$C$4:C368,'Suivi des notes'!C368)","v":"0"}]
[null,366,{"$f":"'Suivi des notes'!C369&COUNTIF('Suivi des notes'!$C$4:C369,'Suivi des notes'!C369)","v":"0"}]
[null,367,{"$f":"'Suivi des notes'!C370&COUNTIF('Suivi des notes'!$C$4:C370,'Suivi des notes'!C370)","v":"0"}]
[null,368,{"$f":"'Suivi des notes'!C371&COUNTIF('Suivi des notes'!$C$4:C371,'Suivi des notes'!C371)","v":"0"}]
[null,369,{"$f":"'Suivi des notes'!C372&COUNTIF('Suivi des notes'!$C$4:C372,'Suivi des notes'!C372)","v":"0"}]
[null,370,{"$f":"'Suivi des notes'!C373&COUNTIF('Suivi des notes'!$C$4:C373,'Suivi des notes'!C373)","v":"0"}]
[null,371,{"$f":"'Suivi des notes'!C374&COUNTIF('Suivi des notes'!$C$4:C374,'Suivi des notes'!C374)","v":"0"}]
[null,372,{"$f":"'Suivi des notes'!C375&COUNTIF('Suivi des notes'!$C$4:C375,'Suivi des notes'!C375)","v":"0"}]
[null,373,{"$f":"'Suivi des notes'!C376&COUNTIF('Suivi des notes'!$C$4:C376,'Suivi des notes'!C376)","v":"0"}]
[null,374,{"$f":"'Suivi des notes'!C377&COUNTIF('Suivi des notes'!$C$4:C377,'Suivi des notes'!C377)","v":"0"}]
[null,375,{"$f":"'Suivi des notes'!C378&COUNTIF('Suivi des notes'!$C$4:C378,'Suivi des notes'!C378)","v":"0"}]
[null,376,{"$f":"'Suivi des notes'!C379&COUNTIF('Suivi des notes'!$C$4:C379,'Suivi des notes'!C379)","v":"0"}]
[null,377,{"$f":"'Suivi des notes'!C380&COUNTIF('Suivi des notes'!$C$4:C380,'Suivi des notes'!C380)","v":"0"}]
[null,378,{"$f":"'Suivi des notes'!C381&COUNTIF('Suivi des notes'!$C$4:C381,'Suivi des notes'!C381)","v":"0"}]
[null,379,{"$f":"'Suivi des notes'!C382&COUNTIF('Suivi des notes'!$C$4:C382,'Suivi des notes'!C382)","v":"0"}]
[null,380,{"$f":"'Suivi des notes'!C383&COUNTIF('Suivi des notes'!$C$4:C383,'Suivi des notes'!C383)","v":"0"}]
[null,381,{"$f":"'Suivi des notes'!C384&COUNTIF('Suivi des notes'!$C$4:C384,'Suivi des notes'!C384)","v":"0"}]
[null,382,{"$f":"'Suivi des notes'!C385&COUNTIF('Suivi des notes'!$C$4:C385,'Suivi des notes'!C385)","v":"0"}]
[null,383,{"$f":"'Suivi des notes'!C386&COUNTIF('Suivi des notes'!$C$4:C386,'Suivi des notes'!C386)","v":"0"}]
[null,384,{"$f":"'Suivi des notes'!C387&COUNTIF('Suivi des notes'!$C$4:C387,'Suivi des notes'!C387)","v":"0"}]
[null,385,{"$f":"'Suivi des notes'!C388&COUNTIF('Suivi des notes'!$C$4:C388,'Suivi des notes'!C388)","v":"0"}]
[null,386,{"$f":"'Suivi des notes'!C389&COUNTIF('Suivi des notes'!$C$4:C389,'Suivi des notes'!C389)","v":"0"}]
[null,387,{"$f":"'Suivi des notes'!C390&COUNTIF('Suivi des notes'!$C$4:C390,'Suivi des notes'!C390)","v":"0"}]
[null,388,{"$f":"'Suivi des notes'!C391&COUNTIF('Suivi des notes'!$C$4:C391,'Suivi des notes'!C391)","v":"0"}]
[null,389,{"$f":"'Suivi des notes'!C392&COUNTIF('Suivi des notes'!$C$4:C392,'Suivi des notes'!C392)","v":"0"}]
[null,390,{"$f":"'Suivi des notes'!C393&COUNTIF('Suivi des notes'!$C$4:C393,'Suivi des notes'!C393)","v":"0"}]
[null,391,{"$f":"'Suivi des notes'!C394&COUNTIF('Suivi des notes'!$C$4:C394,'Suivi des notes'!C394)","v":"0"}]
[null,392,{"$f":"'Suivi des notes'!C395&COUNTIF('Suivi des notes'!$C$4:C395,'Suivi des notes'!C395)","v":"0"}]
[null,393,{"$f":"'Suivi des notes'!C396&COUNTIF('Suivi des notes'!$C$4:C396,'Suivi des notes'!C396)","v":"0"}]
[null,394,{"$f":"'Suivi des notes'!C397&COUNTIF('Suivi des notes'!$C$4:C397,'Suivi des notes'!C397)","v":"0"}]
[null,395,{"$f":"'Suivi des notes'!C398&COUNTIF('Suivi des notes'!$C$4:C398,'Suivi des notes'!C398)","v":"0"}]
[null,396,{"$f":"'Suivi des notes'!C399&COUNTIF('Suivi des notes'!$C$4:C399,'Suivi des notes'!C399)","v":"0"}]
[null,397,{"$f":"'Suivi des notes'!C400&COUNTIF('Suivi des notes'!$C$4:C400,'Suivi des notes'!C400)","v":"0"}]
[null,398,{"$f":"'Suivi des notes'!C401&COUNTIF('Suivi des notes'!$C$4:C401,'Suivi des notes'!C401)","v":"0"}]
[null,399,{"$f":"'Suivi des notes'!C402&COUNTIF('Suivi des notes'!$C$4:C402,'Suivi des notes'!C402)","v":"0"}]
[null,400,{"$f":"'Suivi des notes'!C403&COUNTIF('Suivi des notes'!$C$4:C403,'Suivi des notes'!C403)","v":"0"}]
[null,401,{"$f":"'Suivi des notes'!C404&COUNTIF('Suivi des notes'!$C$4:C404,'Suivi des notes'!C404)","v":"0"}]
[null,402,{"$f":"'Suivi des notes'!C405&COUNTIF('Suivi des notes'!$C$4:C405,'Suivi des notes'!C405)","v":"0"}]
[null,403,{"$f":"'Suivi des notes'!C406&COUNTIF('Suivi des notes'!$C$4:C406,'Suivi des notes'!C406)","v":"0"}]
[null,404,{"$f":"'Suivi des notes'!C407&COUNTIF('Suivi des notes'!$C$4:C407,'Suivi des notes'!C407)","v":"0"}]
[null,405,{"$f":"'Suivi des notes'!C408&COUNTIF('Suivi des notes'!$C$4:C408,'Suivi des notes'!C408)","v":"0"}]
[null,406,{"$f":"'Suivi des notes'!C409&COUNTIF('Suivi des notes'!$C$4:C409,'Suivi des notes'!C409)","v":"0"}]
[null,407,{"$f":"'Suivi des notes'!C410&COUNTIF('Suivi des notes'!$C$4:C410,'Suivi des notes'!C410)","v":"0"}]
[null,408,{"$f":"'Suivi des notes'!C411&COUNTIF('Suivi des notes'!$C$4:C411,'Suivi des notes'!C411)","v":"0"}]
[null,409,{"$f":"'Suivi des notes'!C412&COUNTIF('Suivi des notes'!$C$4:C412,'Suivi des notes'!C412)","v":"0"}]
[null,410,{"$f":"'Suivi des notes'!C413&COUNTIF('Suivi des notes'!$C$4:C413,'Suivi des notes'!C413)","v":"0"}]
[null,411,{"$f":"'Suivi des notes'!C414&COUNTIF('Suivi des notes'!$C$4:C414,'Suivi des notes'!C414)","v":"0"}]
[null,412,{"$f":"'Suivi des notes'!C415&COUNTIF('Suivi des notes'!$C$4:C415,'Suivi des notes'!C415)","v":"0"}]
[null,413,{"$f":"'Suivi des notes'!C416&COUNTIF('Suivi des notes'!$C$4:C416,'Suivi des notes'!C416)","v":"0"}]
[null,414,{"$f":"'Suivi des notes'!C417&COUNTIF('Suivi des notes'!$C$4:C417,'Suivi des notes'!C417)","v":"0"}]
[null,415,{"$f":"'Suivi des notes'!C418&COUNTIF('Suivi des notes'!$C$4:C418,'Suivi des notes'!C418)","v":"0"}]
[null,416,{"$f":"'Suivi des notes'!C419&COUNTIF('Suivi des notes'!$C$4:C419,'Suivi des notes'!C419)","v":"0"}]
[null,417,{"$f":"'Suivi des notes'!C420&COUNTIF('Suivi des notes'!$C$4:C420,'Suivi des notes'!C420)","v":"0"}]
[null,418,{"$f":"'Suivi des notes'!C421&COUNTIF('Suivi des notes'!$C$4:C421,'Suivi des notes'!C421)","v":"0"}]
[null,419,{"$f":"'Suivi des notes'!C422&COUNTIF('Suivi des notes'!$C$4:C422,'Suivi des notes'!C422)","v":"0"}]
[null,420,{"$f":"'Suivi des notes'!C423&COUNTIF('Suivi des notes'!$C$4:C423,'Suivi des notes'!C423)","v":"0"}]
[null,421,{"$f":"'Suivi des notes'!C424&COUNTIF('Suivi des notes'!$C$4:C424,'Suivi des notes'!C424)","v":"0"}]
[null,422,{"$f":"'Suivi des notes'!C425&COUNTIF('Suivi des notes'!$C$4:C425,'Suivi des notes'!C425)","v":"0"}]
[null,423,{"$f":"'Suivi des notes'!C426&COUNTIF('Suivi des notes'!$C$4:C426,'Suivi des notes'!C426)","v":"0"}]
[null,424,{"$f":"'Suivi des notes'!C427&COUNTIF('Suivi des notes'!$C$4:C427,'Suivi des notes'!C427)","v":"0"}]
[null,425,{"$f":"'Suivi des notes'!C428&COUNTIF('Suivi des notes'!$C$4:C428,'Suivi des notes'!C428)","v":"0"}]
[null,426,{"$f":"'Suivi des notes'!C429&COUNTIF('Suivi des notes'!$C$4:C429,'Suivi des notes'!C429)","v":"0"}]
[null,427,{"$f":"'Suivi des notes'!C430&COUNTIF('Suivi des notes'!$C$4:C430,'Suivi des notes'!C430)","v":"0"}]
[null,428,{"$f":"'Suivi des notes'!C431&COUNTIF('Suivi des notes'!$C$4:C431,'Suivi des notes'!C431)","v":"0"}]
[null,429,{"$f":"'Suivi des notes'!C432&COUNTIF('Suivi des notes'!$C$4:C432,'Suivi des notes'!C432)","v":"0"}]
[null,430,{"$f":"'Suivi des notes'!C433&COUNTIF('Suivi des notes'!$C$4:C433,'Suivi des notes'!C433)","v":"0"}]
[null,431,{"$f":"'Suivi des notes'!C434&COUNTIF('Suivi des notes'!$C$4:C434,'Suivi des notes'!C434)","v":"0"}]
[null,432,{"$f":"'Suivi des notes'!C435&COUNTIF('Suivi des notes'!$C$4:C435,'Suivi des notes'!C435)","v":"0"}]
[null,433,{"$f":"'Suivi des notes'!C436&COUNTIF('Suivi des notes'!$C$4:C436,'Suivi des notes'!C436)","v":"0"}]
[null,434,{"$f":"'Suivi des notes'!C437&COUNTIF('Suivi des notes'!$C$4:C437,'Suivi des notes'!C437)","v":"0"}]
[null,435,{"$f":"'Suivi des notes'!C438&COUNTIF('Suivi des notes'!$C$4:C438,'Suivi des notes'!C438)","v":"0"}]
[null,436,{"$f":"'Suivi des notes'!C439&COUNTIF('Suivi des notes'!$C$4:C439,'Suivi des notes'!C439)","v":"0"}]
[null,437,{"$f":"'Suivi des notes'!C440&COUNTIF('Suivi des notes'!$C$4:C440,'Suivi des notes'!C440)","v":"0"}]
[null,438,{"$f":"'Suivi des notes'!C441&COUNTIF('Suivi des notes'!$C$4:C441,'Suivi des notes'!C441)","v":"0"}]
[null,439,{"$f":"'Suivi des notes'!C442&COUNTIF('Suivi des notes'!$C$4:C442,'Suivi des notes'!C442)","v":"0"}]
[null,440,{"$f":"'Suivi des notes'!C443&COUNTIF('Suivi des notes'!$C$4:C443,'Suivi des notes'!C443)","v":"0"}]
[null,441,{"$f":"'Suivi des notes'!C444&COUNTIF('Suivi des notes'!$C$4:C444,'Suivi des notes'!C444)","v":"0"}]
[null,442,{"$f":"'Suivi des notes'!C445&COUNTIF('Suivi des notes'!$C$4:C445,'Suivi des notes'!C445)","v":"0"}]
[null,443,{"$f":"'Suivi des notes'!C446&COUNTIF('Suivi des notes'!$C$4:C446,'Suivi des notes'!C446)","v":"0"}]
[null,444,{"$f":"'Suivi des notes'!C447&COUNTIF('Suivi des notes'!$C$4:C447,'Suivi des notes'!C447)","v":"0"}]
[null,445,{"$f":"'Suivi des notes'!C448&COUNTIF('Suivi des notes'!$C$4:C448,'Suivi des notes'!C448)","v":"0"}]
[null,446,{"$f":"'Suivi des notes'!C449&COUNTIF('Suivi des notes'!$C$4:C449,'Suivi des notes'!C449)","v":"0"}]
[null,447,{"$f":"'Suivi des notes'!C450&COUNTIF('Suivi des notes'!$C$4:C450,'Suivi des notes'!C450)","v":"0"}]
[null,448,{"$f":"'Suivi des notes'!C451&COUNTIF('Suivi des notes'!$C$4:C451,'Suivi des notes'!C451)","v":"0"}]
[null,449,{"$f":"'Suivi des notes'!C452&COUNTIF('Suivi des notes'!$C$4:C452,'Suivi des notes'!C452)","v":"0"}]
[null,450,{"$f":"'Suivi des notes'!C453&COUNTIF('Suivi des notes'!$C$4:C453,'Suivi des notes'!C453)","v":"0"}]
[null,451,{"$f":"'Suivi des notes'!C454&COUNTIF('Suivi des notes'!$C$4:C454,'Suivi des notes'!C454)","v":"0"}]
[null,452,{"$f":"'Suivi des notes'!C455&COUNTIF('Suivi des notes'!$C$4:C455,'Suivi des notes'!C455)","v":"0"}]
[null,453,{"$f":"'Suivi des notes'!C456&COUNTIF('Suivi des notes'!$C$4:C456,'Suivi des notes'!C456)","v":"0"}]
[null,454,{"$f":"'Suivi des notes'!C457&COUNTIF('Suivi des notes'!$C$4:C457,'Suivi des notes'!C457)","v":"0"}]
[null,455,{"$f":"'Suivi des notes'!C458&COUNTIF('Suivi des notes'!$C$4:C458,'Suivi des notes'!C458)","v":"0"}]
[null,456,{"$f":"'Suivi des notes'!C459&COUNTIF('Suivi des notes'!$C$4:C459,'Suivi des notes'!C459)","v":"0"}]
[null,457,{"$f":"'Suivi des notes'!C460&COUNTIF('Suivi des notes'!$C$4:C460,'Suivi des notes'!C460)","v":"0"}]
[null,458,{"$f":"'Suivi des notes'!C461&COUNTIF('Suivi des notes'!$C$4:C461,'Suivi des notes'!C461)","v":"0"}]
[null,459,{"$f":"'Suivi des notes'!C462&COUNTIF('Suivi des notes'!$C$4:C462,'Suivi des notes'!C462)","v":"0"}]
[null,460,{"$f":"'Suivi des notes'!C463&COUNTIF('Suivi des notes'!$C$4:C463,'Suivi des notes'!C463)","v":"0"}]
[null,461,{"$f":"'Suivi des notes'!C464&COUNTIF('Suivi des notes'!$C$4:C464,'Suivi des notes'!C464)","v":"0"}]
[null,462,{"$f":"'Suivi des notes'!C465&COUNTIF('Suivi des notes'!$C$4:C465,'Suivi des notes'!C465)","v":"0"}]
[null,463,{"$f":"'Suivi des notes'!C466&COUNTIF('Suivi des notes'!$C$4:C466,'Suivi des notes'!C466)","v":"0"}]
[null,464,{"$f":"'Suivi des notes'!C467&COUNTIF('Suivi des notes'!$C$4:C467,'Suivi des notes'!C467)","v":"0"}]
[null,465,{"$f":"'Suivi des notes'!C468&COUNTIF('Suivi des notes'!$C$4:C468,'Suivi des notes'!C468)","v":"0"}]
[null,466,{"$f":"'Suivi des notes'!C469&COUNTIF('Suivi des notes'!$C$4:C469,'Suivi des notes'!C469)","v":"0"}]
[null,467,{"$f":"'Suivi des notes'!C470&COUNTIF('Suivi des notes'!$C$4:C470,'Suivi des notes'!C470)","v":"0"}]
[null,468,{"$f":"'Suivi des notes'!C471&COUNTIF('Suivi des notes'!$C$4:C471,'Suivi des notes'!C471)","v":"0"}]
[null,469,{"$f":"'Suivi des notes'!C472&COUNTIF('Suivi des notes'!$C$4:C472,'Suivi des notes'!C472)","v":"0"}]
[null,470,{"$f":"'Suivi des notes'!C473&COUNTIF('Suivi des notes'!$C$4:C473,'Suivi des notes'!C473)","v":"0"}]
[null,471,{"$f":"'Suivi des notes'!C474&COUNTIF('Suivi des notes'!$C$4:C474,'Suivi des notes'!C474)","v":"0"}]
[null,472,{"$f":"'Suivi des notes'!C475&COUNTIF('Suivi des notes'!$C$4:C475,'Suivi des notes'!C475)","v":"0"}]
[null,473,{"$f":"'Suivi des notes'!C476&COUNTIF('Suivi des notes'!$C$4:C476,'Suivi des notes'!C476)","v":"0"}]
[null,474,{"$f":"'Suivi des notes'!C477&COUNTIF('Suivi des notes'!$C$4:C477,'Suivi des notes'!C477)","v":"0"}]
[null,475,{"$f":"'Suivi des notes'!C478&COUNTIF('Suivi des notes'!$C$4:C478,'Suivi des notes'!C478)","v":"0"}]
[null,476,{"$f":"'Suivi des notes'!C479&COUNTIF('Suivi des notes'!$C$4:C479,'Suivi des notes'!C479)","v":"0"}]
[null,477,{"$f":"'Suivi des notes'!C480&COUNTIF('Suivi des notes'!$C$4:C480,'Suivi des notes'!C480)","v":"0"}]
[null,478,{"$f":"'Suivi des notes'!C481&COUNTIF('Suivi des notes'!$C$4:C481,'Suivi des notes'!C481)","v":"0"}]
[null,479,{"$f":"'Suivi des notes'!C482&COUNTIF('Suivi des notes'!$C$4:C482,'Suivi des notes'!C482)","v":"0"}]
[null,480,{"$f":"'Suivi des notes'!C483&COUNTIF('Suivi des notes'!$C$4:C483,'Suivi des notes'!C483)","v":"0"}]
[null,481,{"$f":"'Suivi des notes'!C484&COUNTIF('Suivi des notes'!$C$4:C484,'Suivi des notes'!C484)","v":"0"}]
[null,482,{"$f":"'Suivi des notes'!C485&COUNTIF('Suivi des notes'!$C$4:C485,'Suivi des notes'!C485)","v":"0"}]
[null,483,{"$f":"'Suivi des notes'!C486&COUNTIF('Suivi des notes'!$C$4:C486,'Suivi des notes'!C486)","v":"0"}]
[null,484,{"$f":"'Suivi des notes'!C487&COUNTIF('Suivi des notes'!$C$4:C487,'Suivi des notes'!C487)","v":"0"}]
[null,485,{"$f":"'Suivi des notes'!C488&COUNTIF('Suivi des notes'!$C$4:C488,'Suivi des notes'!C488)","v":"0"}]
[null,486,{"$f":"'Suivi des notes'!C489&COUNTIF('Suivi des notes'!$C$4:C489,'Suivi des notes'!C489)","v":"0"}]
[null,487,{"$f":"'Suivi des notes'!C490&COUNTIF('Suivi des notes'!$C$4:C490,'Suivi des notes'!C490)","v":"0"}]
[null,488,{"$f":"'Suivi des notes'!C491&COUNTIF('Suivi des notes'!$C$4:C491,'Suivi des notes'!C491)","v":"0"}]
[null,489,{"$f":"'Suivi des notes'!C492&COUNTIF('Suivi des notes'!$C$4:C492,'Suivi des notes'!C492)","v":"0"}]
[null,490,{"$f":"'Suivi des notes'!C493&COUNTIF('Suivi des notes'!$C$4:C493,'Suivi des notes'!C493)","v":"0"}]
[null,491,{"$f":"'Suivi des notes'!C494&COUNTIF('Suivi des notes'!$C$4:C494,'Suivi des notes'!C494)","v":"0"}]
[null,492,{"$f":"'Suivi des notes'!C495&COUNTIF('Suivi des notes'!$C$4:C495,'Suivi des notes'!C495)","v":"0"}]
[null,493,{"$f":"'Suivi des notes'!C496&COUNTIF('Suivi des notes'!$C$4:C496,'Suivi des notes'!C496)","v":"0"}]
[null,494,{"$f":"'Suivi des notes'!C497&COUNTIF('Suivi des notes'!$C$4:C497,'Suivi des notes'!C497)","v":"0"}]
[null,495,{"$f":"'Suivi des notes'!C498&COUNTIF('Suivi des notes'!$C$4:C498,'Suivi des notes'!C498)","v":"0"}]
[null,496,{"$f":"'Suivi des notes'!C499&COUNTIF('Suivi des notes'!$C$4:C499,'Suivi des notes'!C499)","v":"0"}]
[null,497,{"$f":"'Suivi des notes'!C500&COUNTIF('Suivi des notes'!$C$4:C500,'Suivi des notes'!C500)","v":"0"}]
[null,498,{"$f":"'Suivi des notes'!C501&COUNTIF('Suivi des notes'!$C$4:C501,'Suivi des notes'!C501)","v":"0"}]
[null,499,{"$f":"'Suivi des notes'!C502&COUNTIF('Suivi des notes'!$C$4:C502,'Suivi des notes'!C502)","v":"0"}]
[null,500,{"$f":"'Suivi des notes'!C503&COUNTIF('Suivi des notes'!$C$4:C503,'Suivi des notes'!C503)","v":"0"}]
[null,501,{"$f":"'Suivi des notes'!C504&COUNTIF('Suivi des notes'!$C$4:C504,'Suivi des notes'!C504)","v":"0"}]
[null,502,{"$f":"'Suivi des notes'!C505&COUNTIF('Suivi des notes'!$C$4:C505,'Suivi des notes'!C505)","v":"0"}]
[null,503,{"$f":"'Suivi des notes'!C506&COUNTIF('Suivi des notes'!$C$4:C506,'Suivi des notes'!C506)","v":"0"}]
[null,504,{"$f":"'Suivi des notes'!C507&COUNTIF('Suivi des notes'!$C$4:C507,'Suivi des notes'!C507)","v":"0"}]
[null,505,{"$f":"'Suivi des notes'!C508&COUNTIF('Suivi des notes'!$C$4:C508,'Suivi des notes'!C508)","v":"0"}]
[null,506,{"$f":"'Suivi des notes'!C509&COUNTIF('Suivi des notes'!$C$4:C509,'Suivi des notes'!C509)","v":"0"}]
[null,507,{"$f":"'Suivi des notes'!C510&COUNTIF('Suivi des notes'!$C$4:C510,'Suivi des notes'!C510)","v":"0"}]
[null,508,{"$f":"'Suivi des notes'!C511&COUNTIF('Suivi des notes'!$C$4:C511,'Suivi des notes'!C511)","v":"0"}]
[null,509,{"$f":"'Suivi des notes'!C512&COUNTIF('Suivi des notes'!$C$4:C512,'Suivi des notes'!C512)","v":"0"}]
[null,510,{"$f":"'Suivi des notes'!C513&COUNTIF('Suivi des notes'!$C$4:C513,'Suivi des notes'!C513)","v":"0"}]
[null,511,{"$f":"'Suivi des notes'!C514&COUNTIF('Suivi des notes'!$C$4:C514,'Suivi des notes'!C514)","v":"0"}]
[null,512,{"$f":"'Suivi des notes'!C515&COUNTIF('Suivi des notes'!$C$4:C515,'Suivi des notes'!C515)","v":"0"}]
[null,513,{"$f":"'Suivi des notes'!C516&COUNTIF('Suivi des notes'!$C$4:C516,'Suivi des notes'!C516)","v":"0"}]
[null,514,{"$f":"'Suivi des notes'!C517&COUNTIF('Suivi des notes'!$C$4:C517,'Suivi des notes'!C517)","v":"0"}]
[null,515,{"$f":"'Suivi des notes'!C518&COUNTIF('Suivi des notes'!$C$4:C518,'Suivi des notes'!C518)","v":"0"}]
[null,516,{"$f":"'Suivi des notes'!C519&COUNTIF('Suivi des notes'!$C$4:C519,'Suivi des notes'!C519)","v":"0"}]
[null,517,{"$f":"'Suivi des notes'!C520&COUNTIF('Suivi des notes'!$C$4:C520,'Suivi des notes'!C520)","v":"0"}]
[null,518,{"$f":"'Suivi des notes'!C521&COUNTIF('Suivi des notes'!$C$4:C521,'Suivi des notes'!C521)","v":"0"}]
[null,519,{"$f":"'Suivi des notes'!C522&COUNTIF('Suivi des notes'!$C$4:C522,'Suivi des notes'!C522)","v":"0"}]
[null,520,{"$f":"'Suivi des notes'!C523&COUNTIF('Suivi des notes'!$C$4:C523,'Suivi des notes'!C523)","v":"0"}]
[null,521,{"$f":"'Suivi des notes'!C524&COUNTIF('Suivi des notes'!$C$4:C524,'Suivi des notes'!C524)","v":"0"}]
[null,522,{"$f":"'Suivi des notes'!C525&COUNTIF('Suivi des notes'!$C$4:C525,'Suivi des notes'!C525)","v":"0"}]
[null,523,{"$f":"'Suivi des notes'!C526&COUNTIF('Suivi des notes'!$C$4:C526,'Suivi des notes'!C526)","v":"0"}]
[null,524,{"$f":"'Suivi des notes'!C527&COUNTIF('Suivi des notes'!$C$4:C527,'Suivi des notes'!C527)","v":"0"}]
[null,525,{"$f":"'Suivi des notes'!C528&COUNTIF('Suivi des notes'!$C$4:C528,'Suivi des notes'!C528)","v":"0"}]
[null,526,{"$f":"'Suivi des notes'!C529&COUNTIF('Suivi des notes'!$C$4:C529,'Suivi des notes'!C529)","v":"0"}]
[null,527,{"$f":"'Suivi des notes'!C530&COUNTIF('Suivi des notes'!$C$4:C530,'Suivi des notes'!C530)","v":"0"}]
[null,528,{"$f":"'Suivi des notes'!C531&COUNTIF('Suivi des notes'!$C$4:C531,'Suivi des notes'!C531)","v":"0"}]
[null,529,{"$f":"'Suivi des notes'!C532&COUNTIF('Suivi des notes'!$C$4:C532,'Suivi des notes'!C532)","v":"0"}]
[null,530,{"$f":"'Suivi des notes'!C533&COUNTIF('Suivi des notes'!$C$4:C533,'Suivi des notes'!C533)","v":"0"}]
[null,531,{"$f":"'Suivi des notes'!C534&COUNTIF('Suivi des notes'!$C$4:C534,'Suivi des notes'!C534)","v":"0"}]
[null,532,{"$f":"'Suivi des notes'!C535&COUNTIF('Suivi des notes'!$C$4:C535,'Suivi des notes'!C535)","v":"0"}]
[null,533,{"$f":"'Suivi des notes'!C536&COUNTIF('Suivi des notes'!$C$4:C536,'Suivi des notes'!C536)","v":"0"}]
[null,534,{"$f":"'Suivi des notes'!C537&COUNTIF('Suivi des notes'!$C$4:C537,'Suivi des notes'!C537)","v":"0"}]
[null,535,{"$f":"'Suivi des notes'!C538&COUNTIF('Suivi des notes'!$C$4:C538,'Suivi des notes'!C538)","v":"0"}]
[null,536,{"$f":"'Suivi des notes'!C539&COUNTIF('Suivi des notes'!$C$4:C539,'Suivi des notes'!C539)","v":"0"}]
[null,537,{"$f":"'Suivi des notes'!C540&COUNTIF('Suivi des notes'!$C$4:C540,'Suivi des notes'!C540)","v":"0"}]
[null,538,{"$f":"'Suivi des notes'!C541&COUNTIF('Suivi des notes'!$C$4:C541,'Suivi des notes'!C541)","v":"0"}]
[null,539,{"$f":"'Suivi des notes'!C542&COUNTIF('Suivi des notes'!$C$4:C542,'Suivi des notes'!C542)","v":"0"}]
[null,540,{"$f":"'Suivi des notes'!C543&COUNTIF('Suivi des notes'!$C$4:C543,'Suivi des notes'!C543)","v":"0"}]
[null,541,{"$f":"'Suivi des notes'!C544&COUNTIF('Suivi des notes'!$C$4:C544,'Suivi des notes'!C544)","v":"0"}]
[null,542,{"$f":"'Suivi des notes'!C545&COUNTIF('Suivi des notes'!$C$4:C545,'Suivi des notes'!C545)","v":"0"}]
[null,543,{"$f":"'Suivi des notes'!C546&COUNTIF('Suivi des notes'!$C$4:C546,'Suivi des notes'!C546)","v":"0"}]
[null,544,{"$f":"'Suivi des notes'!C547&COUNTIF('Suivi des notes'!$C$4:C547,'Suivi des notes'!C547)","v":"0"}]
[null,545,{"$f":"'Suivi des notes'!C548&COUNTIF('Suivi des notes'!$C$4:C548,'Suivi des notes'!C548)","v":"0"}]
[null,546,{"$f":"'Suivi des notes'!C549&COUNTIF('Suivi des notes'!$C$4:C549,'Suivi des notes'!C549)","v":"0"}]
[null,547,{"$f":"'Suivi des notes'!C550&COUNTIF('Suivi des notes'!$C$4:C550,'Suivi des notes'!C550)","v":"0"}]
[null,548,{"$f":"'Suivi des notes'!C551&COUNTIF('Suivi des notes'!$C$4:C551,'Suivi des notes'!C551)","v":"0"}]
[null,549,{"$f":"'Suivi des notes'!C552&COUNTIF('Suivi des notes'!$C$4:C552,'Suivi des notes'!C552)","v":"0"}]
[null,550,{"$f":"'Suivi des notes'!C553&COUNTIF('Suivi des notes'!$C$4:C553,'Suivi des notes'!C553)","v":"0"}]
[null,551,{"$f":"'Suivi des notes'!C554&COUNTIF('Suivi des notes'!$C$4:C554,'Suivi des notes'!C554)","v":"0"}]
[null,552,{"$f":"'Suivi des notes'!C555&COUNTIF('Suivi des notes'!$C$4:C555,'Suivi des notes'!C555)","v":"0"}]
[null,553,{"$f":"'Suivi des notes'!C556&COUNTIF('Suivi des notes'!$C$4:C556,'Suivi des notes'!C556)","v":"0"}]
[null,554,{"$f":"'Suivi des notes'!C557&COUNTIF('Suivi des notes'!$C$4:C557,'Suivi des notes'!C557)","v":"0"}]
[null,555,{"$f":"'Suivi des notes'!C558&COUNTIF('Suivi des notes'!$C$4:C558,'Suivi des notes'!C558)","v":"0"}]
[null,556,{"$f":"'Suivi des notes'!C559&COUNTIF('Suivi des notes'!$C$4:C559,'Suivi des notes'!C559)","v":"0"}]
[null,557,{"$f":"'Suivi des notes'!C560&COUNTIF('Suivi des notes'!$C$4:C560,'Suivi des notes'!C560)","v":"0"}]
[null,558,{"$f":"'Suivi des notes'!C561&COUNTIF('Suivi des notes'!$C$4:C561,'Suivi des notes'!C561)","v":"0"}]
[null,559,{"$f":"'Suivi des notes'!C562&COUNTIF('Suivi des notes'!$C$4:C562,'Suivi des notes'!C562)","v":"0"}]
[null,560,{"$f":"'Suivi des notes'!C563&COUNTIF('Suivi des notes'!$C$4:C563,'Suivi des notes'!C563)","v":"0"}]
[null,561,{"$f":"'Suivi des notes'!C564&COUNTIF('Suivi des notes'!$C$4:C564,'Suivi des notes'!C564)","v":"0"}]
[null,562,{"$f":"'Suivi des notes'!C565&COUNTIF('Suivi des notes'!$C$4:C565,'Suivi des notes'!C565)","v":"0"}]
[null,563,{"$f":"'Suivi des notes'!C566&COUNTIF('Suivi des notes'!$C$4:C566,'Suivi des notes'!C566)","v":"0"}]
[null,564,{"$f":"'Suivi des notes'!C567&COUNTIF('Suivi des notes'!$C$4:C567,'Suivi des notes'!C567)","v":"0"}]
[null,565,{"$f":"'Suivi des notes'!C568&COUNTIF('Suivi des notes'!$C$4:C568,'Suivi des notes'!C568)","v":"0"}]
[null,566,{"$f":"'Suivi des notes'!C569&COUNTIF('Suivi des notes'!$C$4:C569,'Suivi des notes'!C569)","v":"0"}]
[null,567,{"$f":"'Suivi des notes'!C570&COUNTIF('Suivi des notes'!$C$4:C570,'Suivi des notes'!C570)","v":"0"}]
[null,568,{"$f":"'Suivi des notes'!C571&COUNTIF('Suivi des notes'!$C$4:C571,'Suivi des notes'!C571)","v":"0"}]
[null,569,{"$f":"'Suivi des notes'!C572&COUNTIF('Suivi des notes'!$C$4:C572,'Suivi des notes'!C572)","v":"0"}]
[null,570,{"$f":"'Suivi des notes'!C573&COUNTIF('Suivi des notes'!$C$4:C573,'Suivi des notes'!C573)","v":"0"}]
[null,571,{"$f":"'Suivi des notes'!C574&COUNTIF('Suivi des notes'!$C$4:C574,'Suivi des notes'!C574)","v":"0"}]
[null,572,{"$f":"'Suivi des notes'!C575&COUNTIF('Suivi des notes'!$C$4:C575,'Suivi des notes'!C575)","v":"0"}]
[null,573,{"$f":"'Suivi des notes'!C576&COUNTIF('Suivi des notes'!$C$4:C576,'Suivi des notes'!C576)","v":"0"}]
[null,574,{"$f":"'Suivi des notes'!C577&COUNTIF('Suivi des notes'!$C$4:C577,'Suivi des notes'!C577)","v":"0"}]
[null,575,{"$f":"'Suivi des notes'!C578&COUNTIF('Suivi des notes'!$C$4:C578,'Suivi des notes'!C578)","v":"0"}]
[null,576,{"$f":"'Suivi des notes'!C579&COUNTIF('Suivi des notes'!$C$4:C579,'Suivi des notes'!C579)","v":"0"}]
[null,577,{"$f":"'Suivi des notes'!C580&COUNTIF('Suivi des notes'!$C$4:C580,'Suivi des notes'!C580)","v":"0"}]
[null,578,{"$f":"'Suivi des notes'!C581&COUNTIF('Suivi des notes'!$C$4:C581,'Suivi des notes'!C581)","v":"0"}]
[null,579,{"$f":"'Suivi des notes'!C582&COUNTIF('Suivi des notes'!$C$4:C582,'Suivi des notes'!C582)","v":"0"}]
[null,580,{"$f":"'Suivi des notes'!C583&COUNTIF('Suivi des notes'!$C$4:C583,'Suivi des notes'!C583)","v":"0"}]
[null,581,{"$f":"'Suivi des notes'!C584&COUNTIF('Suivi des notes'!$C$4:C584,'Suivi des notes'!C584)","v":"0"}]
[null,582,{"$f":"'Suivi des notes'!C585&COUNTIF('Suivi des notes'!$C$4:C585,'Suivi des notes'!C585)","v":"0"}]
[null,583,{"$f":"'Suivi des notes'!C586&COUNTIF('Suivi des notes'!$C$4:C586,'Suivi des notes'!C586)","v":"0"}]
[null,584,{"$f":"'Suivi des notes'!C587&COUNTIF('Suivi des notes'!$C$4:C587,'Suivi des notes'!C587)","v":"0"}]
[null,585,{"$f":"'Suivi des notes'!C588&COUNTIF('Suivi des notes'!$C$4:C588,'Suivi des notes'!C588)","v":"0"}]
[null,586,{"$f":"'Suivi des notes'!C589&COUNTIF('Suivi des notes'!$C$4:C589,'Suivi des notes'!C589)","v":"0"}]
[null,587,{"$f":"'Suivi des notes'!C590&COUNTIF('Suivi des notes'!$C$4:C590,'Suivi des notes'!C590)","v":"0"}]
[null,588,{"$f":"'Suivi des notes'!C591&COUNTIF('Suivi des notes'!$C$4:C591,'Suivi des notes'!C591)","v":"0"}]
[null,589,{"$f":"'Suivi des notes'!C592&COUNTIF('Suivi des notes'!$C$4:C592,'Suivi des notes'!C592)","v":"0"}]
[null,590,{"$f":"'Suivi des notes'!C593&COUNTIF('Suivi des notes'!$C$4:C593,'Suivi des notes'!C593)","v":"0"}]
[null,591,{"$f":"'Suivi des notes'!C594&COUNTIF('Suivi des notes'!$C$4:C594,'Suivi des notes'!C594)","v":"0"}]
[null,592,{"$f":"'Suivi des notes'!C595&COUNTIF('Suivi des notes'!$C$4:C595,'Suivi des notes'!C595)","v":"0"}]
[null,593,{"$f":"'Suivi des notes'!C596&COUNTIF('Suivi des notes'!$C$4:C596,'Suivi des notes'!C596)","v":"0"}]
[null,594,{"$f":"'Suivi des notes'!C597&COUNTIF('Suivi des notes'!$C$4:C597,'Suivi des notes'!C597)","v":"0"}]
[null,595,{"$f":"'Suivi des notes'!C598&COUNTIF('Suivi des notes'!$C$4:C598,'Suivi des notes'!C598)","v":"0"}]
[null,596,{"$f":"'Suivi des notes'!C599&COUNTIF('Suivi des notes'!$C$4:C599,'Suivi des notes'!C599)","v":"0"}]
[null,597,{"$f":"'Suivi des notes'!C600&COUNTIF('Suivi des notes'!$C$4:C600,'Suivi des notes'!C600)","v":"0"}]
[null,598,{"$f":"'Suivi des notes'!C601&COUNTIF('Suivi des notes'!$C$4:C601,'Suivi des notes'!C601)","v":"0"}]
[null,599,{"$f":"'Suivi des notes'!C602&COUNTIF('Suivi des notes'!$C$4:C602,'Suivi des notes'!C602)","v":"0"}]
[null,600,{"$f":"'Suivi des notes'!C603&COUNTIF('Suivi des notes'!$C$4:C603,'Suivi des notes'!C603)","v":"0"}]
[null,601,{"$f":"'Suivi des notes'!C604&COUNTIF('Suivi des notes'!$C$4:C604,'Suivi des notes'!C604)","v":"0"}]
[null,602,{"$f":"'Suivi des notes'!C605&COUNTIF('Suivi des notes'!$C$4:C605,'Suivi des notes'!C605)","v":"0"}]
[null,603,{"$f":"'Suivi des notes'!C606&COUNTIF('Suivi des notes'!$C$4:C606,'Suivi des notes'!C606)","v":"0"}]
[null,604,{"$f":"'Suivi des notes'!C607&COUNTIF('Suivi des notes'!$C$4:C607,'Suivi des notes'!C607)","v":"0"}]
[null,605,{"$f":"'Suivi des notes'!C608&COUNTIF('Suivi des notes'!$C$4:C608,'Suivi des notes'!C608)","v":"0"}]
[null,606,{"$f":"'Suivi des notes'!C609&COUNTIF('Suivi des notes'!$C$4:C609,'Suivi des notes'!C609)","v":"0"}]
[null,607,{"$f":"'Suivi des notes'!C610&COUNTIF('Suivi des notes'!$C$4:C610,'Suivi des notes'!C610)","v":"0"}]
[null,608,{"$f":"'Suivi des notes'!C611&COUNTIF('Suivi des notes'!$C$4:C611,'Suivi des notes'!C611)","v":"0"}]
[null,609,{"$f":"'Suivi des notes'!C612&COUNTIF('Suivi des notes'!$C$4:C612,'Suivi des notes'!C612)","v":"0"}]
[null,610,{"$f":"'Suivi des notes'!C613&COUNTIF('Suivi des notes'!$C$4:C613,'Suivi des notes'!C613)","v":"0"}]
[null,611,{"$f":"'Suivi des notes'!C614&COUNTIF('Suivi des notes'!$C$4:C614,'Suivi des notes'!C614)","v":"0"}]
[null,612,{"$f":"'Suivi des notes'!C615&COUNTIF('Suivi des notes'!$C$4:C615,'Suivi des notes'!C615)","v":"0"}]
[null,613,{"$f":"'Suivi des notes'!C616&COUNTIF('Suivi des notes'!$C$4:C616,'Suivi des notes'!C616)","v":"0"}]
[null,614,{"$f":"'Suivi des notes'!C617&COUNTIF('Suivi des notes'!$C$4:C617,'Suivi des notes'!C617)","v":"0"}]
[null,615,{"$f":"'Suivi des notes'!C618&COUNTIF('Suivi des notes'!$C$4:C618,'Suivi des notes'!C618)","v":"0"}]
[null,616,{"$f":"'Suivi des notes'!C619&COUNTIF('Suivi des notes'!$C$4:C619,'Suivi des notes'!C619)","v":"0"}]
[null,617,{"$f":"'Suivi des notes'!C620&COUNTIF('Suivi des notes'!$C$4:C620,'Suivi des notes'!C620)","v":"0"}]
[null,618,{"$f":"'Suivi des notes'!C621&COUNTIF('Suivi des notes'!$C$4:C621,'Suivi des notes'!C621)","v":"0"}]
[null,619,{"$f":"'Suivi des notes'!C622&COUNTIF('Suivi des notes'!$C$4:C622,'Suivi des notes'!C622)","v":"0"}]
[null,620,{"$f":"'Suivi des notes'!C623&COUNTIF('Suivi des notes'!$C$4:C623,'Suivi des notes'!C623)","v":"0"}]
[null,621,{"$f":"'Suivi des notes'!C624&COUNTIF('Suivi des notes'!$C$4:C624,'Suivi des notes'!C624)","v":"0"}]
[null,622,{"$f":"'Suivi des notes'!C625&COUNTIF('Suivi des notes'!$C$4:C625,'Suivi des notes'!C625)","v":"0"}]
[null,623,{"$f":"'Suivi des notes'!C626&COUNTIF('Suivi des notes'!$C$4:C626,'Suivi des notes'!C626)","v":"0"}]
[null,624,{"$f":"'Suivi des notes'!C627&COUNTIF('Suivi des notes'!$C$4:C627,'Suivi des notes'!C627)","v":"0"}]
[null,625,{"$f":"'Suivi des notes'!C628&COUNTIF('Suivi des notes'!$C$4:C628,'Suivi des notes'!C628)","v":"0"}]